Workbook

Sheet Instructions
A1: BEFORE YOU BEGIN!!
A3: Click the highlighted yellow bar at the top of the page
A4: on the EXP BASED COST & CA tab to enable Macros.
A6: COMPLETING THE SUMMARY TAB
A9: Step 1: Complete the Project Information
A11: Step 2: Complete the salary amount for the personnel that will work on the project. If multiple staff are on the project, use the highest salary among the staff.
A12: Step 3: The Fringe Rate is a tiered calculation.
A14: Personnel Costs Notes:
B15: Effort is a calculation based on the information provided on the "Effort" tab. This field is not editable and will populate from providing the information on the effort tab.
B16: The costs section will calculate after the "Effort" tab is complete
A20: Clinical Study Costs Summary Notes:
B21: No data entry is required.
B22: Subtotal Startup pulls from "Startup & Inv." tab cell D18
B23: Subtotal Invoiceable pulls from "Startup & Inv." tab cell D44
B24: Total Direct Cost is a sum of Startup Costs and Invoiceable Costs
B25: Subtotal Effort Based Per Patient Costs is a sum of (estimated #hrs x hourly salary rates)
B26: Subtotal Expensed Based Per Patient Costs is a sum of totals on row 38 of the "Cost-Expenses" tab.
B27: Total Direct Per Patient Costs is (Effort+Expense Based per patient costs)*(number of expected patients)
B28: Total Indirect Cost is (L30+L34)* Indirect Cost Rate
B29: Total Direct Costs for R&A is a sum of Startup Costs and Total Direct Per Patient Costs. This total should be used on your R&A form.
B30: Total Indirect Costs for R&A is Total Direct Costs for R&A * Indirect Cost Rate
B31: Total Costs for R&A is a sum of Total Direct Costs for R&A and Total Indirect Costs for R&A
B32: Total Anticipated Study Costs is a sum of (L30+L33+L34)
A33: Step 4: Enter the amount funded by the sponsor.
B34: Study Revenue will be a positive number and show as green; Study Deficit will be a negative number and show as red
A36: COMPLETING COVERAGE ANALYSIS TAB
A39: Adding Rows and Columns:
B40: Using the Macro keys at the top will add rows and columns to the end of each section.
A43: Entering Protocol Activities:
B44: You can find activities utilizing the drop down menus or by directly typing into the Procedures/Activities Column
B45: A location must be selected for every item listed.
B46: A CPT code must be listed for every item that is not identified as a "non-billable"
B47: A justification must be provided for each item marked as Standard of Care (SOC)
A49: Selecting Coverage Type:
B50: A non-billable item is one that will not appear in the GE Centricity billing system.
B51: NB-Cost for Research is a non-billable item that will still be invoiced on a per-patient basis to the resarch account (eg. Department set room charge)
B52: RES identifies a billable procedure that will appear in the GE Centricity billing system that needs to be charged to the research account.
B53: SOC identifies a standard of care procedure that will be billed to the patient/patient's insurance.
A55: COMPLETING EFFORT TAB
A58: Adding Personnel:
B59: Personnel are automatically populated from the Summary tab. Please add additional personnel on the Summary tab.
A61: Inputing Time and Effort:
B62: In the upper table input the total estimated time that the individual is expected to devote for a single patient at each visit.
B63: The lower table automatically calulates the hourly rate for each individual based on the information from the Summary Tab.
A65: COMPLETING COST-EXPENSES TAB
A68: Update Table:
B69: The table does not automatically update. If changes are made to the coverage analysis tab, then you will need to click on the Update Table Macro.
A71: Adding Pricing:
B72: For each item marked as RES or NB-Cost for Research, the cell will unlock and turn yellow.
B73: Input the unit price for each. Remember that some procedures are split into a technical fee from MHHS and professional fee from UTP.
B74: Each column will automatically subtotal and calculate the IDC for the entire visit.
A76: COMPLETING START UP AND INVOICEABLES TAB
A79: Startup Time and Effort:
B80: Scroll down to Rows 54-60.
B81: The personnel will automatically pull from the summary tab Add additional personnel on the Summary tab first.
B82: For each startup activity listed, provide the total amount of time each individual is expected to spend on that activity in the available yellow box.
B83: To the right, total effort will be calculated based on a standard 40 hour work week during a single calendar year.
A85: Other Startup Costs:
B86: Scroll up to the top of the tab.
B87: For each other additional startup costs (not effort based) provide a brief description in the Start Up Costs column.
B88: For each item provide the price prior to IDC. (do not put what you are charging the sponsor, but the actual cost that will hit the account before IDC).
B89: For IRB costs select the appropriate review cost and delete the one that is not needed.
B90: All IDC costs will automatically calculate.
B91: Total Startups and IDC will automatically calculate at the bottom of the table.
A93: Invoiceable Costs:
B94: Provide a brief description of the invoiceable in the Invoiceable Procedue column.
B95: Provide the price that will be paid from the research account in the Unit Price column (do not put what you are charging the sponsor, but the actual cost of the item)
B96: Under Quantity put the maximum number you are allowed to invoice for per the sponsor, if this is unlimited you can estimate how many you may see during the life of the trial.
A100: COMPLETING QQBR TAB
A103: YOU ONLY NEED TO COMPLETE THE SECTIONS THAT APPLY TO YOUR STUDY
A105: For device studies answer the questions in the top section.
A106: For drug/biologic/behavioral studies answer the questions in the bottom section.
A107: Once all questions have been answered have the PI sign the certification at the bottom of the page.

Sheet Summary
A1: The University of Texas Health Science Center at Houston
A2: Clinical Trials Detailed Budget Worksheet
A3: THIS FILE IS FOR INTERNAL USE ONLY. CONTACT CRF@uth.tmc.edu WITH ANY COMMENTS OR QUESTIONS
A4: Version 11/25/2024
A5: Date:
A6: Coverage Analysis Complete By: | G6: Complexity | H6: low | J6: Email:
A7: Budget Complete By: | G7: Phone | J7: Email:
A8: PROJECT INFORMATION: Enter the information below. | N8: What does SC Administrative time cover?
A9: Project Title:
A10: Principal Investigator: | G10: Department:
A11: Sponsor/CRO: | G11: Project Period: | N11: Organizing and upkeep of Subject files
A12: CPHS Study Number: | G12: Coordinator: | N12: Update PI and/or Sponsor on enrollment progress
A13: ClinicalTrials.gov # / NCT #: | G13: IDE #: | N13: Discussing study with collaborating researchers and PI (CO Is, Radiology, MHH, CRU, etc.)
A14: EXPECTED # OF PATIENTS: | G14: IDC RATE: | I14: 0.3 | J14: Non-negotiable for all industry sponsors. | N14: Pre-screening (review ERM and clinic schedules to see if patient is eligible for screening visit and upcoming clinic visits)
A15: PERSONNEL COSTS: These are required for the UTH internal budget, but are not always included in the sponsor's budget; personnel costs are included in effort-based costs below; the PI's effort must be at least 2%. | N15: Phone calls with study subjects
A16: SALARIES: Enter salary (REG + LONG + AUG) for the PI and others. Or, for staff, choose a salary from the range for that position. | N16: Protocol amendment submission to IRB
A17: Position | C17: Name | E17: Salary | G17: % Effort | H17: Request | J17: Fringe Rate | K17: Fringe $ | L17: Total
A18: PI | C18: =C10 -> 0 | G18: =$D$14*Effort!M20 -> 0 | H18: =SUM(E18*G18) -> 0 | J18: =IF($E18<40000, x!$C$3, IF(AND($E18>39999,$E18<70000), x!$C$4, IF(AND($E18>69999,$E18<150000), x!$C$5, IF(AND($E18>149999,$E18<230000), x!$C$6, IF(AND($E18>229999,$E18<500000), x!$C$7, IF($E18>499999, x!$C$8))))))*1 -> 0.44 | K18: =SUM(H18*J18) -> 0 | L18: =SUM(H18+K18) -> 0 | O18: Industry studies
A19: PI Oversight | C19: =C18 -> 0 | E19: =E18 -> 0 | G19: 0.02 | H19: =SUM(E19*G19) -> 0 | J19: =IF($E19<40000, x!$C$3, IF(AND($E19>39999,$E19<70000), x!$C$4, IF(AND($E19>69999,$E19<150000), x!$C$5, IF(AND($E19>149999,$E19<230000), x!$C$6, IF(AND($E19>229999,$E19<500000), x!$C$7, IF($E19>499999, x!$C$8))))))*1 -> 0.44 | K19: =SUM(H19*J19) -> 0 | L19: =SUM(H19+K19) -> 0 | O19: Regulatory binder preparation and ongoing maintenance (IRB approvals, monitoring reports, IND reports etc.)
A20: Coordinator | C20: =I12 -> 0 | G20: =$D$14*Effort!M21 -> 0 | H20: 0 | J20: =IF($E20<40000, x!$C$3, IF(AND($E20>39999,$E20<70000), x!$C$4, IF(AND($E20>69999,$E20<150000), x!$C$5, IF(AND($E20>149999,$E20<230000), x!$C$6, IF(AND($E20>229999,$E20<500000), x!$C$7, IF($E20>499999, x!$C$8))))))*1 -> 0.44 | K20: 0 | L20: 0 | O20: Delegation of authority log upkeep
A21: Coordinator Admin | C21: =C20 -> 0 | E21: =E20 -> 0 | G21: =IF((D14<20),0.05,(IF(D14<30,0.1,(IF(D14<40,0.15,IF(D14<40,0.15,IF(D14<50,0.2,IF(D14<60,0.25,IF(D14<70,0.3,IF(D14<80,0.35,IF(D14<90,0.4,IF(D14<100,0.45,IF(D14<110,0.5,IF(D14<120,0.55,IF(D14<130,0.6,IF(D14<140,0.65,IF(D14<150,0.7,IF(D14<160,0.75)))))))))))))))))) -> 0.05 | H21: 0 | J21: =IF($E21<40000, x!$C$3, IF(AND($E21>39999,$E21<70000), x!$C$4, IF(AND($E21>69999,$E21<150000), x!$C$5, IF(AND($E21>149999,$E21<230000), x!$C$6, IF(AND($E21>229999,$E21<500000), x!$C$7, IF($E21>499999, x!$C$8))))))*1 -> 0.44 | K21: 0 | L21: 0 | O21: Answering data base queries from sponsor
A22: Finanical Management | G22: =$D$14*Effort!M23 -> 0 | H22: 0 | J22: =IF($E22<40000, x!$C$3, IF(AND($E22>39999,$E22<70000), x!$C$4, IF(AND($E22>69999,$E22<150000), x!$C$5, IF(AND($E22>149999,$E22<230000), x!$C$6, IF(AND($E22>229999,$E22<500000), x!$C$7, IF($E22>499999, x!$C$8))))))*1 -> 0.44 | K22: 0 | L22: 0
G23: =$D$14*Effort!M24 -> 0 | H23: 0 | J23: =IF($E23<40000, x!$C$3, IF(AND($E23>39999,$E23<70000), x!$C$4, IF(AND($E23>69999,$E23<150000), x!$C$5, IF(AND($E23>149999,$E23<230000), x!$C$6, IF(AND($E23>229999,$E23<500000), x!$C$7, IF($E23>499999, x!$C$8))))))*1 -> 0.44 | K23: 0 | L23: 0
G24: =$D$14*Effort!M25 -> 0 | H24: 0 | J24: =IF($E24<40000, x!$C$3, IF(AND($E24>39999,$E24<70000), x!$C$4, IF(AND($E24>69999,$E24<150000), x!$C$5, IF(AND($E24>149999,$E24<230000), x!$C$6, IF(AND($E24>229999,$E24<500000), x!$C$7, IF($E24>499999, x!$C$8))))))*1 -> 0.44 | K24: 0 | L24: 0
G25: =$D$14*Effort!M26 -> 0 | H25: =SUM(E25*G25) -> 0 | J25: =IF($E25<40000, x!$C$3, IF(AND($E25>39999,$E25<70000), x!$C$4, IF(AND($E25>69999,$E25<150000), x!$C$5, IF(AND($E25>149999,$E25<230000), x!$C$6, IF(AND($E25>229999,$E25<500000), x!$C$7, IF($E25>499999, x!$C$8))))))*1 -> 0.44 | K25: 0 | L25: 0
A26: Sponsored Projects | E26: 70000 | G26: =$D$14*Effort!M27 -> 0 | H26: 0 | J26: =IF($E26<40000, x!$C$3, IF(AND($E26>39999,$E26<70000), x!$C$4, IF(AND($E26>69999,$E26<150000), x!$C$5, IF(AND($E26>149999,$E26<230000), x!$C$6, IF(AND($E26>229999,$E26<500000), x!$C$7, IF($E26>499999, x!$C$8))))))*1 -> 0.3 | K26: 0 | L26: 0
A27: Study/Project Personnel Costs | H27: =SUM(H18:H26) -> 0 | K27: =SUM(K18:K26) -> 0 | L27: =SUM(L18:L26) -> 0
A28: Clinical Study Costs Summary
A30: Subtotal Startup Costs (Excluding IDC) | L30: ='Start up and Invoiceables'!D18 -> 6007.884615 | N30: What does PI oversight time cover?
A31: Subtotal Invoiceable Costs (Excluding IDC) not included in total | G31: ='Start up and Invoiceables'!D44 -> 1000
A32: Subtotal Effort Costs for 1 patient (excluding IDC) | J32: =L27/D14 -> 
A33: Subtotal Expense Costs for 1 patient (excluding IDC) | J33: =SUM('Cost-Expenses'!C40:BE40) -> 0 | N33: Ensure informed consent, IRB approval, and participant safety throughout the study.
A34: Study/Project Direct Expenses (excluding IDC and personnel expenses) | L34: =J33*D14 -> 0 | N34: Strictly follow the approved protocol and maintain complete, accessible records for regulatory review.
A35: Sub Total Direct Costs Personnel + Expenses+ Startup | L35: =L34+L30+L27 -> 6007.884615 | N35: Hire qualified staff, verify credentials, and provide ongoing supervision and training.
A36: Total Indirect Costs | L36: =L35*I14 -> 1802.365385 | N36: Control drug handling per protocol and ensure accurate, reliable data collection.
A37: START Proposal:Total Direct Costs (Enter into START) | H37: =H39/(1+I14) -> 0 | N37: Provide timely reports to sponsors and regulatory bodies, and maintain open team communication.
A38: START Proposal:Total Indirect Costs (autopopulates in START) | H38: =H39-H37 -> 0
A39: START Proposal: Total Costs (autopopulates in START) | H39: =G41 -> 0
A40: Total Anticipated Internal Study Costs | L40: =SUM(L35:L36) -> 7810.25
A41: Total Anticipated Revenue
A42: Study Revenue or Deficit | G42: =G41-L40 -> -7810.25
A43: COMMENTS:
A45: See notes to right for calculating Total anticpated revenue N37. STUDY TEAM you should leave relevent notes in this section to help expedite Proposal record budget reivew. (This note can be deleted prior to adding study team notes)
A51: Note for Principal Investigator: The final copy of this budget/CA is attached to the proposal record in START. By signing the START proposal reocord you are certifying that the coverage analysis internal budget (CAIB) tool attached accurately reflects the billing determinations and anticpated costs to conduct the study. Per institutional policy (HOOP 214) The PI is responsible for assigning staff to ensure the charges are billed in accordence with the coverage analysis.
N54: **Please note, salary recharge is based on the information provided in this table.
N55: SPA will combine SC per visit and SC administrative effort when calculating salary expenses
A56: PI Signature: | G56: Date:
M58: For Industry initiated studies you will enter I35 under M&O in START (IDC and Grand total will auto populate/calculate in START.) See CT guidence document for more details
N60: **Total Anticipated Revenue is calculated as follows: Total per patient amount multiplied by # of anticipated patients (inclusive of OH), PLUS invoiceable items that are certain to be invoiced/paid.
N61: ***Do not include the invoiceable items that may not occur (e.g., Clinical procedures that are done only if certain criteria is met, SAE reporting, Monitoring visit payments, etc.).
P63: Example: Start up invoicables and Close out invoicables are certain to be invoiced/paid.
P64: Some contracts are set up to include many items that are certain to be invoiced/paid as invoicables. Each contract is unique.

Sheet x (hidden)
A1: FY25 Benefit Tiers | E1: FY25 Benefit Tiers - Students
A2: min | B2: max | C2: rate | E2: min | F2: max | G2: rate
A3: 0 | B3: 39999 | C3: 0.44 | E3: 0 | F3: 4999 | G3: 0.1
A4: 40000 | B4: 69999 | C4: 0.37 | E4: 5000 | F4: 24999 | G4: 0.42
A5: 70000 | B5: 149999 | C5: 0.3 | E5: 25000 | F5: + | G5: 0.27
A6: 150000 | B6: 229999 | C6: 0.25
A7: 230000 | B7: 499999 | C7: 0.2
A8: 500000 | B8: + | C8: 0.13
A10: Project Staff
A11: PI
A12: Staff
A13: Study Coordinator
A16: Administrative fee
A17: Low intensity (0-4 hours) | B17: 300
A18: Moderate intensity (5-9 hours) | B18: 675
A19: High intensity (10+ hours) | B19: 1100
A21: Protocol submission fee
A22: Low intensity (0-8 hours) | B22: 650
A23: Moderate intensity (8-20 hours) | B23: 1300
A24: High intensity (20+ hours) | B24: 2600
A26: Research vs. SOC
A27: Research
A28: SOC
A30: Study Type
A31: Device
A32: Drug
A33: HUD
A35: YES/NO
A36: Yes
A37: No

Sheet Coverage Analysis
A2: =Summary!A9 -> Project Title: | C2: =Summary!B9 -> 0
A3: =Summary!A10 -> Principal Investigator: | C3: =Summary!C10 -> 0
A4: =Summary!A11 -> Sponsor/CRO: | C4: =Summary!C11 -> 0
A5: =Summary!A12 -> CPHS Study Number: | C5: =Summary!C12 -> 0
A6: =Summary!A13 -> ClinicalTrials.gov # / NCT #: | C6: =Summary!D13 -> 0 | M6: Version Date: | N6: =LastSavedTimeStamp() -> 
A8: Category | B8: Procedures/ Activities | C8: Location | D8: CPT Code | E8: CDM Code | N8: Justifications
A30: NOT LISTED IN PROTOCOL SCHEDULE
B32: CRF Data Entry | D32: =IF(ISNA(VLOOKUP(B32,'CA Data-Validation'!$A$121:$B$489,2,FALSE)),"",VLOOKUP(B32,'CA Data-Validation'!$A$121:$B$489,2,FALSE)) -> 
B33: Chart set up | D33: =IF(ISNA(VLOOKUP(B33,'CA Data-Validation'!$A$121:$B$489,2,FALSE)),"",VLOOKUP(B33,'CA Data-Validation'!$A$121:$B$489,2,FALSE)) -> 
B34: Schedule next visit | D34: =IF(ISNA(VLOOKUP(B34,'CA Data-Validation'!$A$121:$B$489,2,FALSE)),"",VLOOKUP(B34,'CA Data-Validation'!$A$121:$B$489,2,FALSE)) -> 
B35: Describe Study drug | D35: =IF(ISNA(VLOOKUP(B35,'CA Data-Validation'!$A$121:$B$489,2,FALSE)),"",VLOOKUP(B35,'CA Data-Validation'!$A$121:$B$489,2,FALSE)) -> 

Sheet CA Data-Validation (hidden)
A1: Patient Payment | B1: Visits | C1: Labs | D1: Anesthesiology | E1: XRay Imaging | F1: Tissue | G1: Ultrasound | H1: CT | I1: MRI MRA | J1: Nuclear Radiology | K1: EKG ECHO | L1: Pulmonary | M1: Pharmacy | N1: Parking | O1: Cardiac | P1: OR | Q1: Biopsy | R1: Fluoroscopy | S1: PET | T1: Neurophysiology | U1: Other
A2: Patient Payment | B2: Clinic Visit_Est. Patient Level 1 | C2: Albumin Serum | D2: Anes Endotracheal Tube | E2: Abdomen Acute Series Complete | F2: Research Handling Fee- blocks | G2: US Abdomen Complete | H2: Creatinine Blood Non OPID-*only use with Contrast for CT | I2: Creatinine Blood Non OPID-*only use with Contrast for MRI | J2: Bone Density DXA Axial Skelet | K2: Cable ECG 12 V Lead | L2: 6 min walk | M2: New Study Set-Up / Administrative Fee (Inpatient Study) | N2: CRU Parking | O2: Angio Coronary w/o Heart Cath | P2: Cable ECG 12 V Lead | Q2: EKG Hourly Monitor Charge | R2: Fluoro Local NDL Biopsy/ Aspiration | S2: CT Thorax W/O Contrast | T2: 13 or more Nerve Conduct | U2: Other
B3: Clinic Visit_New Patient Level 2 | C3: Alk Phosphatase | D3: Anes srvs General 1st 30 min | E3: Abdomen AP View | F3: Research Unstained Slides | G3: US Abdomen Limited | H3: OPID CT Omnipaque 300ML 10-*only use with CT and Angio Contrast | I3: IV START PAK-*only use with Contrast for MRI | J3: Bone Scan Three Phase Study | K3: ECG 12/15 Lead | L3: Alprazolam 1 MG Tab | M3: New Study Set-Up / Administrative Fee (Outpatient Study) | O3: Blood O2 Saturation only | P3: Cardiac Output Measurement | Q3: Conscious Sedation> 5 years old, first 30 min | S3: PET Brain Imaging Met Eval
B4: Clinic Visit_New Patient Level 3 | C4: Alpha -fetoprotein | D4: Anes srvs General add 15 mins | E4: Ankle 2 Views Bilateral | G4: US Brain Scan | H4: Iodixanol 320MG/ML INJ(200ML)- *only use with CT and Angio Contrast | I4: Electrode MRI ECG Quatrade-*only use with Contrast for MRI | J4: Bone Scan Tomogram Spect | K4: 12 Lead ECG CPT (Tracing & Interpretation only) | L4: Blood Gas | M4: Annual Refrig Storage Fee | O4: Cath Lab Treatment Room | P4: Cath 8F Cardiac Output | Q4: Skin biopsy + add Lesion | S4: PET CT Tumor Image Skull MIDTH
B5: Clinic Visit_ Est. Patient Level 4 | C5: ALT (SGPT) | D5: Desflurane Per case | E5: Ankle 2 Views Unilateral | G5: US Chest | H5: Injection Kit Dual Syringe-*only use with Contrast for CT | I5: Monitor Non-Invasive | J5: Bone Scan Whole Body | K5: ECG Rhythym Strip | L5: Blood O2 Saturation | M5: Annual Study Maintenance Fee | O5: DSA Analysis Coronary | P5: Drape Intraop Probe SM T TIP | Q5: Oxygen | S5: PET CT Tumor Imaging LTD area
B6: Clinic Visit_ Est. Patient Level 5 | C6: Amplified Probe(MSRA) | D6: Invasive Pressure Monitor | E6: Ankle Complete 3+V Uni | G6: US Duplex Abd/Pel/Scrot/Kid | H6: CT Abdomen w/Contrast | I6: MRI Kit-*only use with Contrast for MRI | J6: Bone Scan Whole Body | K6: Echo 2D M Mode Comp w/Color Fl | L6: Bronchoscopy w/Biopsy | M6: Miscellaneous IDS FEE 15 min | O6: DSA Analysis LV Gram | P6: Dressing Bio Patch | Q6: Biopsy Tray | S6: PET CT Tumor Imaging Whole BD
B7: Room Charge | C7: AST (SGOT) | D7: Kit Transd 3 ml 12 in 72 in TB | E7: Bone Density DXA Axial Skelet | G7: US Duplex Ext Veins Bilat | H7: CT Abdomen w/out Contrast | I7: GADOBENATE 1ML VL(7935MG/15ML)-*(contrast x 15 (qty 15= qty is equal to 1ML VL (7935MG/15ML) per 150 lb patient) only use with Contrast for MRI | J7: Bone Scan, Multiple Area | K7: Echo 2D M Mode Complete | L7: Bronchoscopy w/Bronchial Lavag | M7: Patient Randomization | O7: Injection Venous Bypass Grafts | P7: Injection IV Push 1st drug | Q7: Universal Precautions | S7: PET Myocard Imag Metabolic Eval
B8: Venipuncture | C8: Basic Metabolic Panel | D8: Oximeter P/Day | E8: Bone Survey Complete | G8: US Pelvis Complete | H8: CT Abodomen w/out - w/Contrast | I8: MRA Abdomen w/Contrast | J8: Brain Scan Spect | K8: Echo 2D M Mode Limited | L8: Bronchoscopy w/Brushing | M8: Per Dose RX Dispensing Fee | O8: Left & Right Heart Cath | P8: Kit Perc Intro 8.5 FR | Q8: Pulse Oximeter | S8: PET Myocard Imag Metabolic Eval
C9: Beta-Natriuretic Peptide (BNP) | E9: Both Knees standing anteroposterior | G9: US Retroperitoneal Limited | H9: CT Angio Abdomen | I9: MRA Abdomen w/out Contrast | J9: Cardiac Scan Gated Multi(MUGA) | K9: Echo Doppler Complete | L9: Cardiac Output Measurement | M9: Storage Of Used Study Medication | O9: Procedure Prep | P9: Minor Proc Recovery 1 st hour | Q9: Biopsy Lung perc | S9: PET Tumor Image Skull Midthigh
C10: Bicarbonate(CO2) | E10: Chest AP w/Fluoro | G10: US Scrotum & Contents | H10: CT Angio Aorta w/Fem Runoff | I10: MRA Abdoment w/out - w/Contrast | J10: Cold Pyrophosphate per dose | K10: Echo Doppler Limited | L10: D5W 500 ml Bag | M10: Study Annual Documentation Fee | O10: S&I Abdominal Aortagram | P10: Minor Proc Recovery add 30 minutes | Q10: Skin biopsy Single Lesion | S10: PET Tumor Imaging
C11: Bilirubin Direct | E11: Chest AP w/Lordotic | G11: US Transpl Kidney w/ Dop | H11: CT Angio Chest w/o - w/Contrast | I11: MRA Chest w/Contrast | J11: Lung Perfusion Scan | K11: Echo Follow-Up Congenital | L11: Diffusion Capacity (DLCO) | O11: S&I Arterial /Vent/Angio ( Pedi) | P11: Oxi Adult Sensor | Q11: Kit Bone Biopsy | S11: PET Tumor Imaging Limited area
C12: Bilirubin Total | E12: Chest 2 view AP & Lateral | G12: US Transpl Kidney w/out Dop | H12: CT Angio Extr Lower w/Contrast Uni | I12: MRA Chest w/out - w/Contrast | J12: TC-99M Sulfur Colloid Per Dose | K12: Echo Follow-Up/Limited | L12: Fentanyl 100 MCG/2 ml Vl | O12: S&I Cor/Pulm/Aort Angio | P12: Pack Line Linen | Q12: Pressure bag vital signs | S12: PET Tumor Imaging Whole Body
C13: Blood Culture | E13: Chest AP Single View | G13: US Transrectal | H13: CT Angio Extr Lower w/o - w/Bi | I13: MRA Head w/Contrast | K13: Echo w/Contrast | L13: Injection Internal Mammary | P13: Phase 2 PACU Ea Add 30 min-Rout | Q13: IV Catheter #18-24
C14: BUN | E14: Knee 1 or 2 views | G14: US Transvaginal | H14: CT Angio Extr Upper w/Contrast Bi | I14: MRA Head w/out - w/Contrast | K14: Holter Analysis | L14: Injection Pulmonary | P14: Preoperative Assessment | Q14: Conscious Sedation> 5 years old, each add 15 mins
C15: Calcium Ionized | E15: Knee 3 views | H15: CT Angio Extr Upper w/Contrast Uni | I15: MRA Head w/out Contrast | K15: Holter Placement 24 Hour | L15: Midazolam 1 MG vl (2mg/2ml) | P15: Pressure Infuse disposable | Q15: Monitors electrodes
C16: Calcium, Total | E16: Knee complete 4 views | H16: CT Angio Head w/out - w/Contrast | I16: MRA Neck w/Contrast | K16: Stress Echo | L16: NACL 0.9% 100 ML Bag | P16: Procedure Prep | Q16: Kit Bone Biopsy 11 ga
C17: CBC w/platelets no diff | E17: Pelvis 1-2 Views | H17: CT Angio Neck w/out - w/Contrast | I17: MRA Neck w/out - w/Contrast | K17: Transesophageal Echo | L17: NACL 0.9% 500 ML IV | P17: Safeset 60/SS/MAC Mon -kit | Q17: Non Invasive blood pressure monitor
C18: CBC diff, w/platelets, automated | E18: Spine Cervical 1V | H18: CT Angio Pelvis w/out - w/Contrast | I18: MRA Neck w/out Contrast | L18: Nitroglycerin 0.6 Mg Tab | P18: Tray Custom Adult Cardiac | Q18: Post Procedure recovery room + 30 mins
C19: CD4 count or T cell Absolute | E19: Spine Cervical 2-3V | H19: CT Cervical Spine w/Contrast | I19: MRA Neck w/out Contrast | L19: O2 Uptake and CO2 Output | Q19: Post Procedure recovery room first hour
C20: Chloride | H20: CT Cervical Spine w/out - w/Contrast | I20: MRA Pelvis w/ or w/out Contrast | L20: Plenty Lung Volumes Airwy Rest
C21: Cholesterol | H21: CT Cervical Spine w/out Contrast | I21: MRA Pelvis w/Contrast | L21: Prednisone 5 MG tab(20 mg)
C22: Complement AG EA Component | H22: CT Chest w/Contrast | I22: MRA Pelvis w/out Contrast | L22: Propofol 200 MG/20ml VL
C23: Comprehensive metabolic panel | H23: CT Chest w/out - w/Contrast | I23: MRI Abdomen w/Contrast | L23: Pulmonary Stress Test Complex
C24: C-Peptide | H24: CT Chest w/out Contrast | I24: MRI Abdomen w/out - w/Contrast | L24: Pulse Oximeter Multiple Determ
C25: CPK Total | H25: CT Head or Brain w/Contrast | I25: MRI Abdomen w/out Contrast | L25: Spirometry
C26: C-Reactive Protein | H26: CT Head or Brain w/out - w/Contrast | I26: MRI Brain w/Contrast | L26: Versed Per 1 MG
C27: C-Reactive Protein High Sens | H27: CT Head or Brain w/out Contrast | I27: MRI Brain w/out - w/Contrast | L27: Vital Capacity Total
C28: Creatinine | H28: CT L-Spine w/Contrast | I28: MRI Brain w/out Contrast
C29: DAT (COOMBS Direct) | H29: CT L-Spine w/out - w/Contrast | I29: MRI Cardiac Function Complete
C30: DNA Antibody Double Strand | H30: CT L-Spine w/out Contrast | I30: MRI Chest w/Contrast
C31: Electrolyte Panel | H31: CT Pelvis w/Contrast | I31: MRI Chest w/out - w/Contrast
C32: ESR (sedimentation rate) | H32: CT Pelvis w/out - w/Contrast | I32: MRI Chest w/out Contrast
C33: Estradiol | H33: CT Pelvis w/out Contrast | I33: MRI C-Spine w/Contrast
C34: F IX inhibitor and F IX C level | H34: CT T-Spine w/Contrast | I34: MRI C-Spine w/out - w/Contrast
C35: Factor VIII Assay (Test code: 26-00140) | H35: CT T-Spine w/out - w/Contrast | I35: MRI C-Spine w/out Contrast
C36: Factor VIII Inhibitor Assay: Human (Test code: 26-00310) | H36: CT T-Spine w/out Contrast | I36: MRI L-Spine w/Contrast
C37: Factor VIII Inhibitor Assay: Porcine (Test code: 26-00320) | I37: MRI L-Spine w/out - w/Contrast
C38: Factor VIII Inhibitor Screen (Test code: 26-00290) | I38: MRI L-Spine w/out Contrast
C39: Fibrin Split Product | I39: MRI Pelvis w/ Contrast
C40: Fibrinogen Activity | I40: MRI Pelvis w/out contrast
C41: FSH-Follicle Stimulating Hormone | I41: MRI Pelvis w/out-w contrast
C42: Gammaglobulin IGA,IGD,IGG,IGM | I42: MRI T-Spine w/Contrast
C43: GGTP | I43: MRI T-Spine w/out - w/Contrast
C44: Glucose Blood | I44: MRI T-Spine w/out Contrast
C45: HbA1C/glycosylated hemoglobin
C46: HCG Pregnancy Test Urine
C47: HCG Qualitative Serum
C48: Hematocrit
C49: Hemoglobin
C50: Hepatic Function Panel
C51: Hepatitis A Antibody ( HAAb)
C52: Hepatitis B Core Antibody (HBcAB)
C53: Hepatitis B surface antibody ( HBsAB)
C54: Hepatitis C antibody
C55: HIV Antibody Confirmatory
C56: HLA B 27
C57: HTLV-1
C58: HTLV-II
C59: Inorganic Phosphorus
C60: Insulin Total
C61: LDH
C62: LDH Isoenzymes
C63: Lipid Panel
C64: Luteinizing Hormone
C65: Magnesium
C66: Nicotine
C67: Phosphorus Inorganic
C68: Platelet Count
C69: Potassium-serum
C70: Protein C Functional
C71: Protein S Free
C72: Protein Total Urine
C73: Protime (PT)
C74: PTT
C75: Quantiferon
C76: Renal Function Panel
C77: Sodium
C78: Somatomedin (IGF -1) insulin growth factor
C79: Syphilis Test Qualitative
C80: T B Screening
C81: Total Protein
C82: Triglyceride
C83: TSH
C84: Uric Acid
C85: Urinalysis - Automated w Micro
C86: Urinalysis - Automated w/out Micro
C87: Urine Culture and Sensitivity Test
A89: Category
A90: Patient Payment | C90: Central Lab
A91: Visits | C91: CRU
A92: Labs | C92: MHHS | E92: Yes | F92: Research
A93: Anesthesiology | C93: UTP Clinic | E93: No | F93: NB
A94: XRay Imaging | C94: Other | F94: SOC
A95: Tissue | C95: MHHS Clinic | F95: NB- Costs for Research
A96: Ultrasound | F96: X
A97: CT
A98: MRI MRA
A99: Nuclear Radiology
A100: EKG ECHO
A101: Pulmonary
A102: Pharmacy
A103: Parking
A104: Cardiac
A105: OR
A106: Biopsy
A107: Fluoroscopy
A108: PET
A109: Neurophysiology
A110: Other
A119: Service Description/Procedures | B119: CPT | C119: CDM
A120: E&M Services
A121: Clinic Visit_New Patient Level 1 | B121: 99201
A122: Clinic Visit_New Patient Level 2 | B122: 99202
A123: Clinic Visit_New Patient Level 3 | B123: 99203
A124: Clinic Visit_New Patient Level 4 | B124: 99204
A125: Clinic Visit_New Patient Level 5 | B125: 99205
A126: Clinic Visit_Est. Patient Level 1 | B126: 99211
A127: Clinic Visit_ Est. Patient Level 2 | B127: 99212
A128: Clinic Visit_ Est. Patient Level 3 | B128: 99213
A129: Clinic Visit_ Est. Patient Level 4 | B129: 99214
A130: Clinic Visit_ Est. Patient Level 5 | B130: 99215
A131: Venipuncture | B131: 36415
A132: Labs
A133: Comprehensive metabolic panel | B133: 80053 | C133: 60400965
A134: Albumin Serum | B134: 82040 | C134: 60401969
A135: Alk Phosphatase | B135: 84075 | C135: 60400164
A136: BUN | B136: 84520 | C136: 60403252
A137: Creatinine | B137: 82565 | C137: 60400911
A138: Calcium, Total | B138: 82310 | C138: 60400490
A139: Glucose Blood | B139: 82947 | C139: 60442014
A140: Total Protein | B140: 84155 | C140: 60340587
A141: AST (SGOT) | B141: 84450 | C141: 60403163
A142: ALT (SGPT) | B142: 84460 | C142: 60403198
A143: Bilirubin Total | B143: 82247 | C143: 60400407
A144: Sodium | B144: 84295 | C144: 60402892
A145: Potassium-serum | B145: 84132 | C145: 60402388
A146: Chloride | B146: 82435 | C146: 60400733
A147: Bicarbonate(CO2) | B147: 82374 | C147: 60434086
A148: Alpha -fetoprotein | B148: 82105
A149: Amplified Probe(MSRA) | B149: 87641 | C149: 60508137
A150: Basic Metabolic Panel | B150: 80047 | C150: 60400959
A151: Beta-Natriuretic Peptide (BNP) | B151: 83880 | C151: 60402938
A152: Bilirubin Direct | B152: 82248 | C152: 60400377
A153: Blood Culture | B153: 87040 | C153: 60503044
A154: CBC w/platelets no diff | B154: 85027 | C154: 60301360
A155: CBC diff, w/platelets, automated | B155: 85025 | C155: 60301395
A156: Hemoglobin | B156: 85018 | C156: 60307671
A157: Hematocrit | B157: 85014 | C157: 60307662
A158: Platelet Count | B158: 85049 | C158: 60300887
A159: Calcium Ionized | B159: 82330 | C159: 60402051
A160: CD4 count or T cell Absolute | B160: 86361 | C160: 60433879
A161: Cholesterol | B161: 82465 | C161: 60400768
A162: Complement AG EA Component | B162: 86160 | C162: 60442048
A163: CPK Total | B163: 82550 | C163: 60400881
A164: C-Reactive Protein | B164: 86140 | C164: 60409206
A165: C-Reactive Protein High Sens | B165: 86141 | C165: 60409207
A166: C-Peptide | B166: 84681 | C166: 60401528
A167: DAT (COOMBS Direct) | B167: 86880 | C167: 60101213
A168: DNA Antibody Double Strand | B168: 86225 | C168: 60601304
A169: Electrolyte Panel | B169: 80051 | C169: 60400963
A170: ESR (sedimentation rate) | B170: 85651 | C170: 60301303
A171: Estradiol | B171: 82670 | C171: 60401504
A172: F IX inhibitor and F IX C level | B172: 85250 | C172: 60307830
A173: Factor VIII Assay (Test code: 26-00140) | B173: 85240 | C173: 60302626
A174: Factor VIII Inhibitor Assay: Human (Test code: 26-00310) | B174: 85335 | C174: 60307830
A175: Factor VIII Inhibitor Assay: Porcine (Test code: 26-00320) | B175: 85335 | C175: 60307830
A176: Factor VIII Inhibitor Screen (Test code: 26-00290) | B176: 85335 | C176: 60307830
A177: Fibrin Split Product | B177: 82784 | C177: 60301727
A178: Fibrinogen Activity | B178: 85384 | C178: 60300461
A179: FSH-Follicle Stimulating Hormone | B179: 83001 | C179: 60401506
A180: Gammaglobulin IGA,IGD,IGG,IGM | B180: 82784 | C180: 60408084
A181: GGTP | B181: 82977 | C181: 60407908
A182: HbA1C/glycosylated hemoglobin | B182: 83036 | C182: 60402997
A183: HCG Qualitative Serum | B183: 84702 | C183: 60404127
A184: HCG Pregnancy Test Urine | B184: 84703 | C184: 60700435
A185: Hepatic Function Panel | B185: 80076 | C185: 60400968
A186: Hepatitis B Core Antibody (HBcAB) | B186: 86704 | C186: 60403096
A187: Hepatitis B surface antibody ( HBsAB) | B187: 86706 | C187: 60407341
A188: Hepatitis A Antibody ( HAAb) | B188: 86708
A189: Hepatitis C antibody | B189: 86803 | C189: 60403173
A190: HIV Antibody Confirmatory | B190: 86701 | C190: 60601320
A191: HTLV-1 | B191: 86687
A192: HTLV-II | B192: 86688
A193: HLA B 27 | B193: 86812 | C193: 60309579
A194: Inorganic Phosphorus | B194: 84100 | C194: 60402329
A195: Insulin Total | B195: 83525 | C195: 60401512
A196: LDH | B196: 83615 | C196: 60401810
A197: LDH Isoenzymes | B197: 83625 | C197: 60405654
A198: Lipid Panel | B198: 80061 | C198: 60408785
A199: Luteinizing Hormone | B199: 83002 | C199: 60401508
A200: Magnesium | B200: 83735 | C200: 60402116
A201: Nicotine | B201: 80302 | C201: 60401070
A202: Phosphorus Inorganic | B202: 84100 | C202: 60402329
A203: Protein C Functional | B203: 85303 | C203: 60307523
A204: Protein S Free | B204: 85306 | C204: 60307531
A205: Protein Total Urine | B205: 84155 | C205: 60400302
A206: Protime (PT) | B206: 85610 | C206: 60300941
A207: PTT | B207: 85730 | C207: 60300852
A208: Quantiferon | B208: 86480 | C208: 3481116
A209: Renal Function Panel | B209: 80069 | C209: 60400976
... 280 more rows

Sheet Effort
A1: =Summary!A9 -> Project Title: | C1: =Summary!B9 -> 0
A2: =Summary!A10 -> Principal Investigator: | C2: =Summary!C10 -> 0
A3: =Summary!A11 -> Sponsor/CRO: | C3: =Summary!C11 -> 0
A4: =Summary!A12 -> CPHS Study Number: | C4: =Summary!C12 -> 0
A6: Position | C6: Name | E6: Hourly Rate
A8: =Summary!A18 -> PI | C8: =IF(Summary!C18=0,"",Summary!C18) ->  | E8: =((Summary!$E$18+ (Summary!$E$18*Summary!$J$18))/2080) -> 0 | F8: =((Summary!$E$18+ (Summary!$E$18*Summary!$J$18))/2080)*#REF! -> 
A9: =Summary!A19 -> PI Oversight | C9: =IF(Summary!C19=0,"",Summary!C19) ->  | E9: =((Summary!$E$19+ (Summary!$E$19*Summary!$J$19))/2080) -> 0 | F9: =((Summary!$E$18+ (Summary!$E$18*Summary!$J$18))/2080)*#REF! -> 
A10: =Summary!A20 -> Coordinator | C10: =IF(Summary!C20=0,"",Summary!C20) ->  | E10: =((Summary!$E$20+ (Summary!$E$20*Summary!$J$20))/2080) -> 0 | F10: =((Summary!$E$18+ (Summary!$E$18*Summary!$J$18))/2080)*#REF! -> 
A11: =Summary!A21 -> Coordinator Admin | C11: =IF(Summary!C21=0,"",Summary!C21) ->  | E11: =((Summary!$E$21+ (Summary!$E$21*Summary!$J$21))/2080) -> 0 | F11: =((Summary!$E$18+ (Summary!$E$18*Summary!$J$18))/2080)*#REF! ->  | H11: Note-- Effort per person for each visit should include visit preparation and visit administration time and effort too.
A12: =Summary!A22 -> Finanical Management | C12: =IF(Summary!C22=0,"",Summary!C22) ->  | E12: =((Summary!$E$22+ (Summary!$E$22*Summary!$J$22))/2080) -> 0 | F12: =((Summary!$E$18+ (Summary!$E$18*Summary!$J$18))/2080)*#REF! ->  | H12: Example- Chart set up, scheduling next visit, escorting participant for imaging, data entry into CRF, etc.
A13: =Summary!A23 -> 0 | C13: =IF(Summary!C23=0,"",Summary!C23) ->  | E13: =((Summary!$E$22+ (Summary!$E$22*Summary!$J$22))/2080) -> 0 | F13: =((Summary!$E$18+ (Summary!$E$18*Summary!$J$18))/2080)*#REF! -> 
A14: =Summary!A24 -> 0 | C14: =IF(Summary!C24=0,"",Summary!C24) ->  | E14: =((Summary!$E$22+ (Summary!$E$22*Summary!$J$22))/2080) -> 0 | F14: =((Summary!$E$18+ (Summary!$E$18*Summary!$J$18))/2080)*#REF! ->  | H14: Financial Management - Minimum .5 per visit for invoicing and/or payment reconciliation & 3 hours for last visit for study reconciliation. (In some cases this is also the study coordinator. However the time spent for financial management is separate from and in addition to the time and effort spent during study visits therefore needs to be captured separately.
A15: =Summary!A25 -> 0 | C15: =IF(Summary!C25=0,"",Summary!C25) ->  | E15: =((Summary!$E$24+ (Summary!$E$24*Summary!$J$24))/2080) -> 0 | F15: =((Summary!$E$18+ (Summary!$E$18*Summary!$J$18))/2080)*#REF! ->  | H15: Regulatory Management- Minimum .25 per visit and 3 hours for last study visit to capture continuing reviews, and amendment processing . (In many cases the study coordinator also manages regulatory. However the time spent managing regulatory documents (SAE, Reg Binder, IND report management, IRB submissions) is separate from and in addition to the time and effort spent during study visits therefore needs to be captured separately.
A16: =Summary!A26 -> Sponsored Projects | C16: =IF(Summary!C26=0,"",Summary!C26) ->  | E16: =((Summary!$E$26+ (Summary!$E$26*Summary!$J$26))/2080) -> 43.75 | F16: =((Summary!$E$18+ (Summary!$E$18*Summary!$J$18))/2080)*#REF! -> 
A18: Position | C18: Name | M18: Effort %
E19: ='Coverage Analysis'!F8 -> 0 | F19: ='Coverage Analysis'!G8 -> 0 | G19: ='Coverage Analysis'!H8 -> 0 | H19: ='Coverage Analysis'!I8 -> 0 | I19: ='Coverage Analysis'!J8 -> 0 | J19: ='Coverage Analysis'!K8 -> 0 | K19: ='Coverage Analysis'!L8 -> 0 | L19: ='Coverage Analysis'!M8 -> 0
A20: =Summary!A18 -> PI | C20: =IF(Summary!C18=0,"",Summary!C18) ->  | M20: =SUM(E20:L20) /2080 -> 0
A21: =Summary!A20 -> Coordinator | C21: =IF(Summary!C20=0,"",Summary!C20) ->  | M21: 0
A22: =Summary!A21 -> Coordinator Admin | C22: =IF(Summary!C21=0,"",Summary!C21) ->  | M22: 0
A23: =Summary!A22 -> Finanical Management | C23: =IF(Summary!C22=0,"",Summary!C22) ->  | M23: 0
A24: =Summary!A23 -> 0 | C24: =IF(Summary!C23=0,"",Summary!C23) ->  | M24: =SUM(E24:L24) /2080 -> 0
A25: =Summary!A24 -> 0 | C25: =IF(Summary!C24=0,"",Summary!C24) ->  | M25: 0
A26: =Summary!A25 -> 0 | C26: =IF(Summary!C25=0,"",Summary!C25) ->  | M26: 0
A27: =Summary!A26 -> Sponsored Projects | C27: =IF(Summary!C26=0,"",Summary!C26) ->  | M27: 0
A28: Total Number of Staff Hours: | E28: =SUM(E20:E27) -> 0 | F28: =SUM(F20:F27) -> 0 | G28: 0 | H28: 0 | I28: 0 | J28: 0 | K28: 0 | L28: 0
E31: *Review visits on the Coverage Analysis tab to assses time and effort for each visit per study team member
A34: =Effort!A18 -> Position | C34: =Effort!C18 -> Name
E35: ='Coverage Analysis'!F8 -> 0 | F35: ='Coverage Analysis'!G8 -> 0 | G35: ='Coverage Analysis'!H8 -> 0 | H35: ='Coverage Analysis'!I8 -> 0 | I35: ='Coverage Analysis'!J8 -> 0 | J35: ='Coverage Analysis'!K8 -> 0 | K35: ='Coverage Analysis'!L8 -> 0 | L35: ='Coverage Analysis'!M8 -> 0
A36: =Effort!A20 -> PI | C36: =IF(Summary!C18=0,"",Summary!C18) ->  | E36: =((Summary!$E$18+ (Summary!$E$18*Summary!$J$18))/2080)*E20 -> 0 | F36: =((Summary!$E$18+ (Summary!$E$18*Summary!$J$18))/2080)*F20 -> 0 | G36: =((Summary!$E$18+ (Summary!$E$18*Summary!$J$18))/2080)*G20 -> 0 | H36: =((Summary!$E$18+ (Summary!$E$18*Summary!$J$18))/2080)*H20 -> 0 | I36: =((Summary!$E$18+ (Summary!$E$18*Summary!$J$18))/2080)*I20 -> 0 | J36: =((Summary!$E$18+ (Summary!$E$18*Summary!$J$18))/2080)*J20 -> 0 | K36: =((Summary!$E$18+ (Summary!$E$18*Summary!$J$18))/2080)*K20 -> 0 | L36: =((Summary!$E$18+ (Summary!$E$18*Summary!$J$18))/2080)*L20 -> 0
A37: =Effort!A21 -> Coordinator | C37: =IF(Summary!C20=0,"",Summary!C20) ->  | E37: =((Summary!$E$20+ (Summary!$E$20*Summary!$J$20))/2080)*E21 -> 0 | F37: =((Summary!$E$20+ (Summary!$E$20*Summary!$J$20))/2080)*F21 -> 0 | G37: =((Summary!$E$20+ (Summary!$E$20*Summary!$J$20))/2080)*G21 -> 0 | H37: =((Summary!$E$20+ (Summary!$E$20*Summary!$J$20))/2080)*H21 -> 0 | I37: =((Summary!$E$20+ (Summary!$E$20*Summary!$J$20))/2080)*I21 -> 0 | J37: =((Summary!$E$20+ (Summary!$E$20*Summary!$J$20))/2080)*J21 -> 0 | K37: =((Summary!$E$20+ (Summary!$E$20*Summary!$J$20))/2080)*K21 -> 0 | L37: =((Summary!$E$20+ (Summary!$E$20*Summary!$J$20))/2080)*L21 -> 0
A38: =Effort!A22 -> Coordinator Admin | C38: =IF(Summary!C21=0,"",Summary!C21) ->  | E38: =((Summary!$E$21+ (Summary!$E$21*Summary!$J$21))/2080)*E22 -> 0 | F38: =((Summary!$E$21+ (Summary!$E$21*Summary!$J$21))/2080)*F22 -> 0 | G38: =((Summary!$E$21+ (Summary!$E$21*Summary!$J$21))/2080)*G22 -> 0 | H38: =((Summary!$E$21+ (Summary!$E$21*Summary!$J$21))/2080)*H22 -> 0 | I38: =((Summary!$E$21+ (Summary!$E$21*Summary!$J$21))/2080)*I22 -> 0 | J38: =((Summary!$E$21+ (Summary!$E$21*Summary!$J$21))/2080)*J22 -> 0 | K38: =((Summary!$E$21+ (Summary!$E$21*Summary!$J$21))/2080)*K22 -> 0 | L38: =((Summary!$E$21+ (Summary!$E$21*Summary!$J$21))/2080)*L22 -> 0
A39: =Effort!A23 -> Finanical Management | C39: =IF(Summary!C22=0,"",Summary!C22) ->  | E39: =((Summary!$E$22+ (Summary!$E$22*Summary!$J$22))/2080)*E23 -> 0 | F39: =((Summary!$E$22+ (Summary!$E$22*Summary!$J$22))/2080)*F23 -> 0 | G39: =((Summary!$E$22+ (Summary!$E$22*Summary!$J$22))/2080)*G23 -> 0 | H39: =((Summary!$E$22+ (Summary!$E$22*Summary!$J$22))/2080)*H23 -> 0 | I39: =((Summary!$E$22+ (Summary!$E$22*Summary!$J$22))/2080)*I23 -> 0 | J39: =((Summary!$E$22+ (Summary!$E$22*Summary!$J$22))/2080)*J23 -> 0 | K39: =((Summary!$E$22+ (Summary!$E$22*Summary!$J$22))/2080)*K23 -> 0 | L39: =((Summary!$E$22+ (Summary!$E$22*Summary!$J$22))/2080)*L23 -> 0
A40: =Effort!A24 -> 0 | C40: =IF(Summary!C23=0,"",Summary!C23) ->  | E40: =((Summary!$E$22+ (Summary!$E$22*Summary!$J$22))/2080)*E24 -> 0 | F40: =((Summary!$E$22+ (Summary!$E$22*Summary!$J$22))/2080)*F24 -> 0 | G40: =((Summary!$E$22+ (Summary!$E$22*Summary!$J$22))/2080)*G24 -> 0 | H40: =((Summary!$E$22+ (Summary!$E$22*Summary!$J$22))/2080)*H24 -> 0 | I40: =((Summary!$E$22+ (Summary!$E$22*Summary!$J$22))/2080)*I24 -> 0 | J40: =((Summary!$E$22+ (Summary!$E$22*Summary!$J$22))/2080)*J24 -> 0 | K40: =((Summary!$E$22+ (Summary!$E$22*Summary!$J$22))/2080)*K24 -> 0 | L40: =((Summary!$E$22+ (Summary!$E$22*Summary!$J$22))/2080)*L24 -> 0
A41: =Effort!A25 -> 0 | C41: =IF(Summary!C24=0,"",Summary!C24) ->  | E41: =((Summary!$E$22+ (Summary!$E$22*Summary!$J$22))/2080)*E25 -> 0 | F41: =((Summary!$E$22+ (Summary!$E$22*Summary!$J$22))/2080)*F25 -> 0 | G41: =((Summary!$E$22+ (Summary!$E$22*Summary!$J$22))/2080)*G25 -> 0 | H41: =((Summary!$E$22+ (Summary!$E$22*Summary!$J$22))/2080)*H25 -> 0 | I41: =((Summary!$E$22+ (Summary!$E$22*Summary!$J$22))/2080)*I25 -> 0 | J41: =((Summary!$E$22+ (Summary!$E$22*Summary!$J$22))/2080)*J25 -> 0 | K41: =((Summary!$E$22+ (Summary!$E$22*Summary!$J$22))/2080)*K25 -> 0 | L41: =((Summary!$E$22+ (Summary!$E$22*Summary!$J$22))/2080)*L25 -> 0
A42: =Effort!A26 -> 0 | C42: =IF(Summary!C25=0,"",Summary!C25) ->  | E42: =((Summary!$E$22+ (Summary!$E$22*Summary!$J$22))/2080)*E26 -> 0 | F42: =((Summary!$E$22+ (Summary!$E$22*Summary!$J$22))/2080)*F26 -> 0 | G42: =((Summary!$E$22+ (Summary!$E$22*Summary!$J$22))/2080)*G26 -> 0 | H42: =((Summary!$E$22+ (Summary!$E$22*Summary!$J$22))/2080)*H26 -> 0 | I42: =((Summary!$E$22+ (Summary!$E$22*Summary!$J$22))/2080)*I26 -> 0 | J42: =((Summary!$E$22+ (Summary!$E$22*Summary!$J$22))/2080)*J26 -> 0 | K42: =((Summary!$E$22+ (Summary!$E$22*Summary!$J$22))/2080)*K26 -> 0 | L42: =((Summary!$E$22+ (Summary!$E$22*Summary!$J$22))/2080)*L26 -> 0
A43: =Effort!A27 -> Sponsored Projects | C43: =IF(Summary!C26=0,"",Summary!C26) ->  | E43: =((Summary!$E$26+ (Summary!$E$26*Summary!$J$26))/2080)*E27 -> 0 | F43: =((Summary!$E$26+ (Summary!$E$26*Summary!$J$26))/2080)*F27 -> 0 | G43: =((Summary!$E$26+ (Summary!$E$26*Summary!$J$26))/2080)*G27 -> 0 | H43: =((Summary!$E$26+ (Summary!$E$26*Summary!$J$26))/2080)*H27 -> 0 | I43: =((Summary!$E$26+ (Summary!$E$26*Summary!$J$26))/2080)*I27 -> 0 | J43: =((Summary!$E$26+ (Summary!$E$26*Summary!$J$26))/2080)*J27 -> 0 | K43: =((Summary!$E$26+ (Summary!$E$26*Summary!$J$26))/2080)*K27 -> 0 | L43: =((Summary!$E$26+ (Summary!$E$26*Summary!$J$26))/2080)*L27 -> 0
A44: Total Effort Cost per Visit | E44: =SUM(E36:E43) -> 0 | F44: =SUM(F36:F43) -> 0 | G44: 0 | H44: 0 | I44: 0 | J44: 0 | K44: 0 | L44: =SUM(L36:L43) -> 0
A45: Total Effort Cost per Visit plus IDC | E45: =E44*1.3 -> 0 | F45: =F44*1.3 -> 0 | G45: 0 | H45: 0 | I45: 0 | J45: 0 | K45: 0 | L45: =L44*1.3 -> 0

Sheet Cost-Expenses
A2: =Summary!A10 -> Principal Investigator: | C2: =Summary!C10 -> 0
A3: =Summary!A11 -> Sponsor/CRO: | C3: =Summary!C11 -> 0
A4: =Summary!A12 -> CPHS Study Number: | C4: =Summary!C12 -> 0
A5: =Summary!A13 -> ClinicalTrials.gov # / NCT #: | C5: =Summary!D13 -> 0
B11: Clinical Cost
B12: Procedures/Activities | C12: ='Coverage Analysis'!F8 -> 0 | D12: ='Coverage Analysis'!G8 -> 0 | E12: ='Coverage Analysis'!H8 -> 0 | F12: ='Coverage Analysis'!I8 -> 0 | G12: ='Coverage Analysis'!J8 -> 0 | H12: ='Coverage Analysis'!K8 -> 0 | I12: ='Coverage Analysis'!L8 -> 0 | J12: ='Coverage Analysis'!M8 -> 0
B13: =IF(ISBLANK('Coverage Analysis'!B9),"",'Coverage Analysis'!B9) -> 
B14: =IF(ISBLANK('Coverage Analysis'!B10),"",'Coverage Analysis'!B10) -> 
B15: =IF(ISBLANK('Coverage Analysis'!B11),"",'Coverage Analysis'!B11) -> 
B16: =IF(ISBLANK('Coverage Analysis'!B12),"",'Coverage Analysis'!B12) -> 
B17: =IF(ISBLANK('Coverage Analysis'!B13),"",'Coverage Analysis'!B13) -> 
B18: =IF(ISBLANK('Coverage Analysis'!B14),"",'Coverage Analysis'!B14) -> 
B19: =IF(ISBLANK('Coverage Analysis'!B15),"",'Coverage Analysis'!B15) -> 
B20: =IF(ISBLANK('Coverage Analysis'!B16),"",'Coverage Analysis'!B16) -> 
B21: =IF(ISBLANK('Coverage Analysis'!B17),"",'Coverage Analysis'!B17) -> 
B22: =IF(ISBLANK('Coverage Analysis'!B18),"",'Coverage Analysis'!B18) -> 
B23: =IF(ISBLANK('Coverage Analysis'!B19),"",'Coverage Analysis'!B19) -> 
B24: =IF(ISBLANK('Coverage Analysis'!B20),"",'Coverage Analysis'!B20) -> 
B25: =IF(ISBLANK('Coverage Analysis'!B21),"",'Coverage Analysis'!B21) -> 
B26: =IF(ISBLANK('Coverage Analysis'!B22),"",'Coverage Analysis'!B22) -> 
B27: =IF(ISBLANK('Coverage Analysis'!B23),"",'Coverage Analysis'!B23) -> 
B28: =IF(ISBLANK('Coverage Analysis'!B24),"",'Coverage Analysis'!B24) -> 
B29: =IF(ISBLANK('Coverage Analysis'!B25),"",'Coverage Analysis'!B25) -> 
B30: =IF(ISBLANK('Coverage Analysis'!B26),"",'Coverage Analysis'!B26) -> 
B31: =IF(ISBLANK('Coverage Analysis'!B27),"",'Coverage Analysis'!B27) -> 
B32: =IF(ISBLANK('Coverage Analysis'!B28),"",'Coverage Analysis'!B28) -> 
B33: =IF(ISBLANK('Coverage Analysis'!B29),"",'Coverage Analysis'!B29) -> 
B34: NOT LISTED IN PROTOCOL SCHEDULE
B36: =IF(ISBLANK('Coverage Analysis'!B32),,'Coverage Analysis'!B32) -> CRF Data Entry
B37: =IF(ISBLANK('Coverage Analysis'!B33),"",'Coverage Analysis'!B33) -> Chart set up
B38: =IF(ISBLANK('Coverage Analysis'!B34),"",'Coverage Analysis'!B34) -> Schedule next visit
B39: =IF(ISBLANK('Coverage Analysis'!B35),"",'Coverage Analysis'!B35) -> Describe Study drug
B40: Subtotal | C40: =SUBTOTAL(9,C13:C39) -> 0 | D40: 0 | E40: 0 | F40: 0 | G40: =SUBTOTAL(9,G13:G39) -> 0 | H40: =SUBTOTAL(9,H13:H39) -> 0 | I40: =SUBTOTAL(9,I13:I39) -> 0 | J40: 0
B41: IDC | C41: =C40*(Summary!$I$14) -> 0 | D41: =D40*(Summary!$I$14) -> 0 | E41: =E40*(Summary!$I$14) -> 0 | F41: =F40*(Summary!$I$14) -> 0 | G41: =G40*(Summary!$I$14) -> 0 | H41: =H40*(Summary!$I$14) -> 0 | I41: =I40*(Summary!$I$14) -> 0 | J41: =J40*(Summary!$I$14) -> 0
B42: Grand Total | C42: =C40+C41 -> 0 | D42: 0 | E42: 0 | F42: 0 | G42: 0 | H42: 0 | I42: 0 | J42: 0
E44: *Enter the costs for the items highlighed green above
C46: All clinical services and procedures performed for research purposes will be charged to the Finanical account set up for this study.
C47: Most often a discounted rate for services and procedures performed for research purposes is provided. Communicate with apprpopriate billing staff to identify the exact dollar amount that will be charged.

Sheet Start up and Invoiceables
A1: =Summary!A9 -> Project Title: | C1: =Summary!B9 -> 0
A2: =Summary!A10 -> Principal Investigator: | C2: =Summary!C10 -> 0
A3: =Summary!A12 -> CPHS Study Number: | C3: =Summary!C12 -> 0
A5: Start Up Costs | D5: Total | E5: Total W IDC
A6: Start Up Effort | D6: =IF(U77=0,"",U77) -> 962.5 | E6: =IF(U78=0,"",U78) -> 1251.25
A7: IRB Review Fee - Local or Permission to Rely | D7: 2000 | E7: =IF(D7=0, "",D7*1.3) -> 2600 | H7: Coverage Analysis Fees - for Industry and Departmentally Sponsored studies (inclusive of IDC)
A8: Coverage Analysis Fee | D8: =E8/1.3 -> 1545.384615 | E8: =IF(Summary!H6='Start up and Invoiceables'!H8,'Start up and Invoiceables'!I8,IF(Summary!H6='Start up and Invoiceables'!H9,'Start up and Invoiceables'!I9,IF(Summary!H6='Start up and Invoiceables'!H10,'Start up and Invoiceables'!I10,""))) -> 2009 | H8: Low | I8: 2009
A9: Investigational Pharmacy Setup Fee (Delete if N/A) | H9: Medium | I9: 3348
A10: MHH Adminsitrative Start up Fee (Delete if N/A) | E10: =IF(D10=0, "",D10*1.3) ->  | H10: High | I10: 4151
A11: Radiology Dept Setup Fee (Delete if N/A) | D11: 750 | E11: 975 | H11: Complex | I11: 4151
A12: CRU Start up Fee (Delete if N/A)
A13: Lab set up Fee (Delete if N/A)
A14: Patient Population Assessment Fee | D14: 750 | E14: 975 | H14: Effective 01/01/24 IRB fee is $2600 (inclusive of IDC) regardless of whether or not the study is requesting full board review or requesting permission to rely on outside IRB
H15: Effective 09/01/25 Patient Population Assessment fee is $750 (w/o IDC) for SBMI/EPIC IT to conduct feasability reports
A18: Total Start up Cost | D18: =SUM(D6:D17) -> 6007.884615 | E18: =SUM(E6:E17) -> 7810.25
E19: =SUM(E12:E18) -> 8785.25
A20: Invoiceable Procedures | B20: Unit cost | C20: Quantity | D20: Total | E20: Total W IDC
A21: IRB annual Review | B21: 1000 | C21: 1 | D21: 1000 | E21: =D21*1.3 -> 1300
C22: 1 | D22: =B22*C22 -> 0 | E22: =D22*1.3 -> 0
C23: 1 | D23: 0 | E23: =D23*1.3 -> 0
C24: 1 | D24: 0 | E24: 0
C25: 1 | D25: 0 | E25: 0
C26: 1 | D26: 0 | E26: 0
C27: 1 | D27: 0 | E27: 0
C28: 1 | D28: 0 | E28: 0
D29: 0 | E29: 0
D30: 0 | E30: 0
D31: 0 | E31: 0
D32: 0 | E32: 0
D33: 0 | E33: 0
D34: 0 | E34: 0
D35: 0 | E35: 0
D36: 0 | E36: 0
D37: 0 | E37: 0
D38: 0 | E38: 0
D39: 0 | E39: 0
D40: 0 | E40: 0
D41: 0 | E41: 0
D42: 0 | E42: 0
D43: 0 | E43: 0
A44: Total Invoiceable Costs | D44: =SUM(D21:D43) -> 1000 | E44: =SUM(E21:E43) -> 1300
A49: Start up time and effort
A52: Position | B52: Name | U52: Effort %
F53: Protocol Review | G53: Feasibility Assessment | H53: Internal logistics /operational preparation | I53: Complete Regulatory Documents | J53: Coverage Analysis | K53: Budget and Contract Negotiations | L53: Prepare Source Documents and Study Files | M53: Submission of paperwork to IRB (Includes ICF preparation) | N53: Protocol specific training and Protocol in-service with study team and collaborators if applicable | O53: CRF system training | P53: Investigator meeting | Q53: Site Initiation Visit (include Site Feasibility Visit if applicable) | R53: CRU coordination and Communication | S53: MHH Protocol Submission (Submission, submission follow up communications ) | T53: Study drug Coordination (Coordination and communication with MHH IDS or communication and coordination for departmental storage.)
A54: =Summary!A18 -> PI | B54: =IF(Summary!C18=0,"", Summary!C18) ->  | F54: 3 | U54: =SUM(F54:T54)/2080 -> 0.001442307692
A55: =Summary!A20 -> Coordinator | B55: =IF(ISBLANK(Summary!C20), "", Summary!C20) -> 0 | F55: 3 | U55: =SUM(F55:T55)/2080 -> 0.001442307692
A56: =Summary!A21 -> Coordinator Admin | B56: =IF(ISBLANK(Summary!C21), "", Summary!C21) -> 0 | U56: 0
A57: =Summary!A22 -> Finanical Management | B57: =IF(ISBLANK(Summary!C22), "", Summary!C22) ->  | U57: 0
A58: =Summary!A23 -> 0 | B58: =IF(ISBLANK(Summary!C23), "", Summary!C23) ->  | U58: 0
A59: =Summary!A24 -> 0 | B59: =IF(ISBLANK(Summary!C24), "", Summary!C24) -> 
A60: =Summary!A25 -> 0 | B60: =IF(ISBLANK(Summary!C25), "", Summary!C25) ->  | U60: 0
A61: =Summary!A26 -> Sponsored Projects | B61: Sponsored Projects | H61: 2 | J61: 2 | K61: 16 | L61: 2 | U61: 0.01057692308
A62: Total Number of Staff Hours: | F62: =SUM(F54:F61) -> 6 | G62: =SUM(G54:G61) -> 0 | H62: 2 | I62: 0 | J62: 2 | K62: 16 | L62: 2 | M62: 0 | N62: 0 | O62: 0 | P62: 0 | Q62: 0 | R62: 0 | S62: 0 | T62: 0
A68: Position | B68: Name
F69: Protocol Review | G69: Feasibility Assessment | H69: Internal logistics /operational preparation | I69: Complete Regulatory Documents | J69: Coverage Analysis | K69: Budget Negotiations | L69: Coordination of SPA Contract review and financial account set up | M69: Submission of paperwork to IRB (Includes ICF preparation) | N69: Protocol specific training and Protocol in-service with study team and collaborators if applicable | O69: CRF system training | P69: Investigator meeting | Q69: Site Initiation Visit (include Site Feasibility Visit if applicable) | R69: CRU coordination and Communication | S69: MHH Protocol Submission (Submission, submission follow up communications ) | T69: Study drug Coordination (Coordination and communication with MHH IDS or communication and coordination for departmental storage.) | U69: TOTALS
A70: =Summary!A18 -> PI | B70: =B54 ->  | F70: =((Summary!$E$18+ (Summary!$E$18*Summary!$J$18))/2080)*F54 -> 0 | G70: =((Summary!$E$18+ (Summary!$E$18*Summary!$J$18))/2080)*G54 -> 0 | H70: =((Summary!$E$18+ (Summary!$E$18*Summary!$J$18))/2080)*H54 -> 0 | I70: =((Summary!$E$18+ (Summary!$E$18*Summary!$J$18))/2080)*I54 -> 0 | J70: =((Summary!$E$18+ (Summary!$E$18*Summary!$J$18))/2080)*J54 -> 0 | K70: =((Summary!$E$18+ (Summary!$E$18*Summary!$J$18))/2080)*K54 -> 0 | L70: =((Summary!$E$18+ (Summary!$E$18*Summary!$J$18))/2080)*L54 -> 0 | M70: =((Summary!$E$18+ (Summary!$E$18*Summary!$J$18))/2080)*M54 -> 0 | N70: =((Summary!$E$18+ (Summary!$E$18*Summary!$J$18))/2080)*N54 -> 0 | O70: =((Summary!$E$18+ (Summary!$E$18*Summary!$J$18))/2080)*O54 -> 0 | P70: =((Summary!$E$18+ (Summary!$E$18*Summary!$J$18))/2080)*P54 -> 0 | Q70: =((Summary!$E$18+ (Summary!$E$18*Summary!$J$18))/2080)*Q54 -> 0 | R70: =((Summary!$E$18+ (Summary!$E$18*Summary!$J$18))/2080)*R54 -> 0 | S70: =((Summary!$E$18+ (Summary!$E$18*Summary!$J$18))/2080)*S54 -> 0 | T70: =((Summary!$E$18+ (Summary!$E$18*Summary!$J$18))/2080)*T54 -> 0
A71: =Summary!A20 -> Coordinator | B71: =B55 -> 0 | F71: =((Summary!$E$20+ (Summary!$E$20*Summary!$J$20))/2080)*F55 -> 0 | G71: =((Summary!$E$20+ (Summary!$E$20*Summary!$J$20))/2080)*G55 -> 0 | H71: =((Summary!$E$20+ (Summary!$E$20*Summary!$J$20))/2080)*H55 -> 0 | I71: =((Summary!$E$20+ (Summary!$E$20*Summary!$J$20))/2080)*I55 -> 0 | J71: =((Summary!$E$20+ (Summary!$E$20*Summary!$J$20))/2080)*J55 -> 0 | K71: =((Summary!$E$20+ (Summary!$E$20*Summary!$J$20))/2080)*K55 -> 0 | L71: =((Summary!$E$20+ (Summary!$E$20*Summary!$J$20))/2080)*L55 -> 0 | M71: =((Summary!$E$20+ (Summary!$E$20*Summary!$J$20))/2080)*M55 -> 0 | N71: =((Summary!$E$20+ (Summary!$E$20*Summary!$J$20))/2080)*N55 -> 0 | O71: =((Summary!$E$20+ (Summary!$E$20*Summary!$J$20))/2080)*O55 -> 0 | P71: =((Summary!$E$20+ (Summary!$E$20*Summary!$J$20))/2080)*P55 -> 0 | Q71: =((Summary!$E$20+ (Summary!$E$20*Summary!$J$20))/2080)*Q55 -> 0 | R71: =((Summary!$E$20+ (Summary!$E$20*Summary!$J$20))/2080)*R55 -> 0 | S71: =((Summary!$E$20+ (Summary!$E$20*Summary!$J$20))/2080)*S55 -> 0 | T71: =((Summary!$E$20+ (Summary!$E$20*Summary!$J$20))/2080)*T55 -> 0
A72: =Summary!A21 -> Coordinator Admin | B72: =B56 -> 0 | F72: =((Summary!$E$21+ (Summary!$E$21*Summary!$J$21))/2080)*F56 -> 0 | G72: =((Summary!$E$20+ (Summary!$E$20*Summary!$J$20))/2080)*G56 -> 0 | H72: =((Summary!$E$20+ (Summary!$E$20*Summary!$J$20))/2080)*H56 -> 0 | I72: =((Summary!$E$20+ (Summary!$E$20*Summary!$J$20))/2080)*I56 -> 0 | J72: =((Summary!$E$20+ (Summary!$E$20*Summary!$J$20))/2080)*J56 -> 0 | K72: =((Summary!$E$20+ (Summary!$E$20*Summary!$J$20))/2080)*K56 -> 0 | L72: =((Summary!$E$20+ (Summary!$E$20*Summary!$J$20))/2080)*L56 -> 0 | M72: =((Summary!$E$20+ (Summary!$E$20*Summary!$J$20))/2080)*M56 -> 0 | N72: =((Summary!$E$20+ (Summary!$E$20*Summary!$J$20))/2080)*N56 -> 0 | O72: =((Summary!$E$20+ (Summary!$E$20*Summary!$J$20))/2080)*O56 -> 0 | P72: =((Summary!$E$20+ (Summary!$E$20*Summary!$J$20))/2080)*P56 -> 0 | Q72: =((Summary!$E$20+ (Summary!$E$20*Summary!$J$20))/2080)*Q56 -> 0 | R72: =((Summary!$E$20+ (Summary!$E$20*Summary!$J$20))/2080)*R56 -> 0 | S72: =((Summary!$E$20+ (Summary!$E$20*Summary!$J$20))/2080)*S56 -> 0 | T72: =((Summary!$E$20+ (Summary!$E$20*Summary!$J$20))/2080)*T56 -> 0
A73: =Summary!A22 -> Finanical Management | B73: =B57 ->  | F73: =((Summary!$E$22+ (Summary!$E$22*Summary!$J$22))/2080)*F57 -> 0 | G73: =((Summary!$E$22+ (Summary!$E$22*Summary!$J$22))/2080)*G57 -> 0 | H73: =((Summary!$E$22+ (Summary!$E$22*Summary!$J$22))/2080)*H57 -> 0 | I73: =((Summary!$E$22+ (Summary!$E$22*Summary!$J$22))/2080)*I57 -> 0 | J73: =((Summary!$E$22+ (Summary!$E$22*Summary!$J$22))/2080)*J57 -> 0 | K73: =((Summary!$E$22+ (Summary!$E$22*Summary!$J$22))/2080)*K57 -> 0 | L73: =((Summary!$E$22+ (Summary!$E$22*Summary!$J$22))/2080)*L57 -> 0 | M73: =((Summary!$E$22+ (Summary!$E$22*Summary!$J$22))/2080)*M57 -> 0 | N73: =((Summary!$E$22+ (Summary!$E$22*Summary!$J$22))/2080)*N57 -> 0 | O73: =((Summary!$E$22+ (Summary!$E$22*Summary!$J$22))/2080)*O57 -> 0 | P73: =((Summary!$E$22+ (Summary!$E$22*Summary!$J$22))/2080)*P57 -> 0 | Q73: =((Summary!$E$22+ (Summary!$E$22*Summary!$J$22))/2080)*Q57 -> 0 | R73: =((Summary!$E$22+ (Summary!$E$22*Summary!$J$22))/2080)*R57 -> 0 | S73: =((Summary!$E$22+ (Summary!$E$22*Summary!$J$22))/2080)*S57 -> 0 | T73: =((Summary!$E$22+ (Summary!$E$22*Summary!$J$22))/2080)*T57 -> 0
A74: =Summary!A23 -> 0 | B74: =B58 ->  | F74: =((Summary!$E$23+ (Summary!$E$23*Summary!$J$23))/2080)*F58 -> 0 | G74: =((Summary!$E$23+ (Summary!$E$23*Summary!$J$23))/2080)*G58 -> 0 | H74: =((Summary!$E$23+ (Summary!$E$23*Summary!$J$23))/2080)*H58 -> 0 | I74: =((Summary!$E$23+ (Summary!$E$23*Summary!$J$23))/2080)*I58 -> 0 | J74: =((Summary!$E$23+ (Summary!$E$23*Summary!$J$23))/2080)*J58 -> 0 | K74: =((Summary!$E$23+ (Summary!$E$23*Summary!$J$23))/2080)*K58 -> 0 | L74: =((Summary!$E$23+ (Summary!$E$23*Summary!$J$23))/2080)*L58 -> 0 | M74: =((Summary!$E$23+ (Summary!$E$23*Summary!$J$23))/2080)*M58 -> 0 | N74: =((Summary!$E$23+ (Summary!$E$23*Summary!$J$23))/2080)*N58 -> 0 | O74: =((Summary!$E$23+ (Summary!$E$23*Summary!$J$23))/2080)*O58 -> 0 | P74: =((Summary!$E$23+ (Summary!$E$23*Summary!$J$23))/2080)*P58 -> 0 | Q74: =((Summary!$E$23+ (Summary!$E$23*Summary!$J$23))/2080)*Q58 -> 0 | R74: =((Summary!$E$23+ (Summary!$E$23*Summary!$J$23))/2080)*R58 -> 0 | S74: =((Summary!$E$23+ (Summary!$E$23*Summary!$J$23))/2080)*S58 -> 0 | T74: =((Summary!$E$23+ (Summary!$E$23*Summary!$J$23))/2080)*T58 -> 0
A75: =Summary!A24 -> 0 | B75: =B60 ->  | F75: =((Summary!$E$24+ (Summary!$E$24*Summary!$J$24))/2080)*F60 -> 0 | G75: =((Summary!$E$24+ (Summary!$E$24*Summary!$J$24))/2080)*G60 -> 0 | H75: =((Summary!$E$24+ (Summary!$E$24*Summary!$J$24))/2080)*H60 -> 0 | I75: =((Summary!$E$24+ (Summary!$E$24*Summary!$J$24))/2080)*I60 -> 0 | J75: =((Summary!$E$24+ (Summary!$E$24*Summary!$J$24))/2080)*J60 -> 0 | K75: =((Summary!$E$24+ (Summary!$E$24*Summary!$J$24))/2080)*K60 -> 0 | L75: =((Summary!$E$24+ (Summary!$E$24*Summary!$J$24))/2080)*L60 -> 0 | M75: =((Summary!$E$24+ (Summary!$E$24*Summary!$J$24))/2080)*M60 -> 0 | N75: =((Summary!$E$24+ (Summary!$E$24*Summary!$J$24))/2080)*N60 -> 0 | O75: =((Summary!$E$24+ (Summary!$E$24*Summary!$J$24))/2080)*O60 -> 0 | P75: =((Summary!$E$24+ (Summary!$E$24*Summary!$J$24))/2080)*P60 -> 0 | Q75: =((Summary!$E$24+ (Summary!$E$24*Summary!$J$24))/2080)*Q60 -> 0 | R75: =((Summary!$E$24+ (Summary!$E$24*Summary!$J$24))/2080)*R60 -> 0 | S75: =((Summary!$E$24+ (Summary!$E$24*Summary!$J$24))/2080)*S60 -> 0 | T75: =((Summary!$E$24+ (Summary!$E$24*Summary!$J$24))/2080)*T60 -> 0
A76: =Summary!A26 -> Sponsored Projects | B76: Sponsored Projects | F76: =((Summary!$E$26+ (Summary!$E$26*Summary!$J$26))/2080)*F61 -> 0 | G76: =((Summary!$E$26+ (Summary!$E$26*Summary!$J$26))/2080)*G61 -> 0 | H76: =((Summary!$E$26+ (Summary!$E$26*Summary!$J$26))/2080)*H61 -> 87.5 | I76: =((Summary!$E$26+ (Summary!$E$26*Summary!$J$26))/2080)*I61 -> 0 | J76: =((Summary!$E$26+ (Summary!$E$26*Summary!$J$26))/2080)*J61 -> 87.5 | K76: =((Summary!$E$26+ (Summary!$E$26*Summary!$J$26))/2080)*K61 -> 700 | L76: =((Summary!$E$26+ (Summary!$E$26*Summary!$J$26))/2080)*L61 -> 87.5 | M76: =((Summary!$E$26+ (Summary!$E$26*Summary!$J$26))/2080)*M61 -> 0 | N76: =((Summary!$E$26+ (Summary!$E$26*Summary!$J$26))/2080)*N61 -> 0 | O76: =((Summary!$E$26+ (Summary!$E$26*Summary!$J$26))/2080)*O61 -> 0 | P76: =((Summary!$E$26+ (Summary!$E$26*Summary!$J$26))/2080)*P61 -> 0 | Q76: =((Summary!$E$26+ (Summary!$E$26*Summary!$J$26))/2080)*Q61 -> 0 | R76: =((Summary!$E$26+ (Summary!$E$26*Summary!$J$26))/2080)*R61 -> 0 | S76: =((Summary!$E$26+ (Summary!$E$26*Summary!$J$26))/2080)*S61 -> 0 | T76: =((Summary!$E$26+ (Summary!$E$26*Summary!$J$26))/2080)*T61 -> 0
A77: Total Effort Study Start up | F77: =SUM(F70:F76) -> 0 | G77: =SUM(G70:G76) -> 0 | H77: =SUM(H70:H76) -> 87.5 | I77: =SUM(I70:I76) -> 0 | J77: =SUM(J70:J76) -> 87.5 | K77: =SUM(K70:K76) -> 700 | L77: =SUM(L70:L76) -> 87.5 | M77: =SUM(M70:M76) -> 0 | N77: =SUM(N70:N76) -> 0 | O77: =SUM(O70:O76) -> 0 | P77: =SUM(P70:P76) -> 0 | Q77: =SUM(Q70:Q76) -> 0 | R77: =SUM(R70:R76) -> 0 | S77: =SUM(S70:S76) -> 0 | T77: =SUM(T70:T76) -> 0 | U77: =SUM(F77:T77) -> 962.5 | V77: Total
A78: Total Effort Cost Study Start up plus IDC | F78: =F77*(1+Summary!I14) -> 0 | G78: =G77*(1+Summary!I14) -> 0 | H78: =H77*(1+Summary!I14) -> 113.75 | I78: =I77*(1+Summary!I14) -> 0 | J78: =J77*(1+Summary!I14) -> 113.75 | K78: =K77*(1+Summary!I14) -> 910 | L78: =L77*(1+Summary!I14) -> 113.75 | M78: =M77*(1+Summary!I14) -> 0 | N78: =N77*(1+Summary!I14) -> 0 | O78: =O77*(1+Summary!I14) -> 0 | P78: =P77*(1+Summary!I14) -> 0 | Q78: =Q77*(1+Summary!I14) -> 0 | R78: =R77*(1+Summary!I14) -> 0 | S78: =S77*(1+Summary!I14) -> 0 | T78: =T77*(1+Summary!I14) -> 0 | U78: =SUM(F78:T78) -> 1251.25 | V78: Total with IDC

Sheet QQBR
A2: Project Title: | B2: =Summary!B9 -> 0
A3: Principal Investigator: | C3: =Summary!C10 -> 0 | G3: Department: | I3: =Summary!I10 -> 0
A4: Sponsor/CRO: | C4: =Summary!C11 -> 0 | G4: Project Period: | I4: =Summary!I11 -> 0
A5: CPHS Study Number: | C5: =Summary!C12 -> 0 | G5: Coordinator: | I5: =Summary!I12 -> 0
A6: ClinicalTrials.gov # / NCT #: | D6: =Summary!D13 -> 0 | G6: IDE #: | I6: =Summary!I13 -> 0
A7: Coverage Analysis Version Date: | D7: ='Coverage Analysis'!N6 -> 
A9: Device Studies
A10: What type of device is being studied?
A12: Is the investigational product provided for free by sponsor?
A13: If IDE, has the device “packet” been sent to CMS for approval?
A14: Has it been approved by CMS for billing?
A15: Has the MHH device checklist been completed? | N15: A DEEMED study is one that meets one of the following criteria: 1. Trials funded by NIH, CDC, AHRQ, CMS, DOD or VA. 2. Trials supported by centers or cooperative groups that are funded by the NIH, CDC, AHRQ, CMS, DOD or VA. 3. Trials conducted under an investigational new drug application (IND) reviewed by the FDA. 4. Drug trials that are exempt from having an IND under 21 CFR 312.2(b)(1).
A17: Drug/Biologic/Behavioral Studies
A18: Is the investigational product provided for free by sponsor?
A20: Conditions for Qualifying Clinical Trial
A21: The subject or purpose of the trial is the evaluation of an item or service that falls within a Medicare benefit category (e.g., physicians' service, durable medical equipment, or diagnostic test) and is not statutorily excluded from coverage (e.g., cosmetic surgery, hearing aids).
A22: The trial has therapeutic intent (i.e., the trial is not designed exclusively to test toxicity or disease path physiology).
A23: For a trial of a therapeutic intervention, the trial must enroll patients with diagnosed disease rather than healthy volunteers.
A24: The trial is considered to be a DEEMED study.
A25: Please submit the completed form along with the completed Coverage Analysis to crf@uth.edu.
A27: Federal Requirements (As Applicable to Medicare and Other Third Party Payers):
A28: 1) The billing provider must include in the beneficiary's medical record the following information: trial name, sponsor, and sponsor-assigned protocol number. This information does not need to be submitted with the claim but must be provided if requested for medical review.
A29: 2) The billing provider must report a National Clinical Trial (NCT) number on claims for items and services provided in clinical trials that are qualified for coverage. Services that are dictated in the clinical trial protocol, including routine care for the condition in the clinical trial, must be submitted with an NCT identifier number on a Medicare claim related to the clinical trial. Only items dictated in the research protocol are required to have the NCT identifier.
A30: 3) The clinical trial number is assigned by the National Library of Medicine website (http://clincialtrials.gov) when a new study is registered in the NLM Clinical Trials Database.
A31: 4) Claims also should include the following identifiers when being submitted to Medicare: a) Condition Code 30 (qualified clinical trial) b) ICD-10 code z00.6 (clinical research participant) as a secondary diagnosis c) Modifier Q0 (investigational item) or Q1 (routine services)
A33: UTHealth Clinical Research Billing Policy
A34: 1) It is the responsibility of the PI to ensure that the clinical research billing of his or her studies is in compliance with all laws and regulations and adhere to university policy. The PI, his or her research staff, department administrators, and the CRF Team must work together to ensure the components of accurate billing are in place. Please refer to the Coverage Analysis Procedure and the Clinical Research Billing Procedure.
A35: 2) The PI and study staff must prepare and submit a coverage analysis
A36: 3) The coverage analysis should be consistent with the study protocol and informed consent and should accurately and appropriately allocate the costs associated with the performance of the clinical study to the responsible payer.
A37: 4) The study budget should reflect all charges listed in the coverage analysis as sponsored paid research.
A38: 5) The PI and study staff must ensure that there is an outlined plan to identify research patients prior to providing services.
A39: 6) The PI and study staff must ensure that the services for study subjects enrolled in the clinical research project are billed in accordance with the coverage analysis and that the bills are based on actual services rendered and consistent with the informed consent.
A40: 7) After services are provided, study staff must coordinate with the appropriate personnel to ensure that proper billing information is provided.
A41: 8) Each department and clinic must follow clinical research billing procedures specific to its unit or practice in order to ensure that clinical research billing is conducted appropriately and accurately.
A42: 9) Study staff must conduct periodic reconciliation of clinical research billing charges.
A44: CERTIFICATION:
A45: I certify that I have read and understand the UTHealth Clinical Research Billing Policy and will comply with all applicable laws and UTHealth rules and policies governing clinical research billing. I certify to the best of my ability that the coverage analysis dated above is correct.

Sheet Budget (hidden)
A1: Summary info: | K1: Summary Information | M1: Total Direct | N1: Total W/IDC | O1: Grand Total
A2: Project info: | L2: Start up | M2: =Summary!L30 -> 6007.884615 | N2: =M2*Summary!I14 -> 1802.365385 | O2: =M2+N2 -> 7810.25
A3: Project Title: | B3: =Summary!B9 -> 0 | E3: Department | F3: =Summary!I10 -> 0 | L3: Invoiceable | M3: =Summary!G31 -> 1000 | N3: =M3*Summary!I14 -> 300 | O3: =M3+N3 -> 1300
A4: PI | B4: =Summary!C10 -> 0 | E4: Project Period | F4: =Summary!I11 -> 0 | L4: Patient care | M4: =Summary!J33*Summary!D14 -> 0 | N4: =M4*Summary!I14 -> 0 | O4: =M4+N4 -> 0
A5: Spnosr | B5: =Summary!C11 -> 0 | E5: Coordinator | F5: =Summary!I12 -> 0 | L5: Effort | M5: =Summary!L27 -> 0 | N5: =M5*Summary!I14 -> 0 | O5: =M5+N5 -> 0
A6: CPHS Study Number | B6: =Summary!C12 -> 0 | E6: IDE# | F6: =Summary!I13 -> 0 | L6: Grand total | M6: =SUM(M2:M5)-M3 -> 6007.884615 | N6: =M6*Summary!I14 -> 1802.365385 | O6: =M6+N6 -> 7810.25 | P6: Does not include invoiceable costs
A7: Expected # of Patients | B7: =Summary!D14 -> 0 | E7: ICD RATE: | F7: =Summary!I14 -> 0.3 | L7: =Summary!A41 -> Total Anticipated Revenue | O7: =Summary!G41 -> 0
L8: Study Revenue or Deficit | O8: =Summary!G42 -> -7810.25
L9: Total Cost to UTH per 1 Patient excluding start up costs | O9: =(O5+O4)/Summary!D14 ->  | P9: Expense cost + effort +plus IDC
A11: Clinical Cost
A12: Procedures/Activities | B12: ='Coverage Analysis'!F8 -> 0 | C12: ='Coverage Analysis'!G8 -> 0 | D12: ='Coverage Analysis'!H8 -> 0 | E12: ='Coverage Analysis'!I8 -> 0 | F12: ='Coverage Analysis'!J8 -> 0 | G12: ='Coverage Analysis'!K8 -> 0 | H12: ='Coverage Analysis'!L8 -> 0 | I12: ='Coverage Analysis'!M8 -> 0
A13: =IF(ISBLANK('Cost-Expenses'!B13),,'Cost-Expenses'!B13) -> 
A14: =IF(ISBLANK('Cost-Expenses'!B14),,'Cost-Expenses'!B14) -> 
A15: =IF(ISBLANK('Cost-Expenses'!B15),,'Cost-Expenses'!B15) -> 
A16: =IF(ISBLANK('Cost-Expenses'!B16),,'Cost-Expenses'!B16) -> 
A17: =IF(ISBLANK('Cost-Expenses'!B17),,'Cost-Expenses'!B17) -> 
A18: =IF(ISBLANK('Cost-Expenses'!B18),,'Cost-Expenses'!B18) -> 
A19: =IF(ISBLANK('Cost-Expenses'!B19),,'Cost-Expenses'!B19) -> 
A20: =IF(ISBLANK('Cost-Expenses'!B20),,'Cost-Expenses'!B20) -> 
A21: =IF(ISBLANK('Cost-Expenses'!B21),,'Cost-Expenses'!B21) -> 
A22: =IF(ISBLANK('Cost-Expenses'!B22),,'Cost-Expenses'!B22) -> 
A23: =IF(ISBLANK('Cost-Expenses'!B23),,'Cost-Expenses'!B23) -> 
A24: =IF(ISBLANK('Cost-Expenses'!B24),,'Cost-Expenses'!B24) -> 
A25: =IF(ISBLANK('Cost-Expenses'!B25),,'Cost-Expenses'!B25) -> 
A26: =IF(ISBLANK('Cost-Expenses'!B26),,'Cost-Expenses'!B26) -> 
A27: =IF(ISBLANK('Cost-Expenses'!B27),,'Cost-Expenses'!B27) -> 
A28: =IF(ISBLANK('Cost-Expenses'!B28),,'Cost-Expenses'!B28) -> 
A29: =IF(ISBLANK('Cost-Expenses'!B29),,'Cost-Expenses'!B29) -> 
A30: =IF(ISBLANK('Cost-Expenses'!B30),,'Cost-Expenses'!B30) -> 
A31: =IF(ISBLANK('Cost-Expenses'!B31),,'Cost-Expenses'!B31) -> 
A32: =IF(ISBLANK('Cost-Expenses'!B32),,'Cost-Expenses'!B32) -> 
A33: =IF(ISBLANK('Cost-Expenses'!B33),,'Cost-Expenses'!B33) -> 
A34: NOT LISTED IN PROTOCOL SCHEDULE
A35: =IF(ISBLANK('Cost-Expenses'!B35),"",'Cost-Expenses'!B35) -> 
A36: =IF(ISBLANK('Cost-Expenses'!B36),"",'Cost-Expenses'!B36) -> CRF Data Entry
A37: =IF(ISBLANK('Cost-Expenses'!B37),"",'Cost-Expenses'!B37) -> Chart set up
A38: =IF(ISBLANK('Cost-Expenses'!B38),"",'Cost-Expenses'!B38) -> Schedule next visit
A39: =IF(ISBLANK('Cost-Expenses'!B39),"",'Cost-Expenses'!B39) -> Describe Study drug
A40: Subtotal | B40: =SUBTOTAL(9,B13:B39) -> 0 | C40: 0 | D40: 0 | E40: 0 | F40: 0 | G40: 0 | H40: 0 | I40: 0
A42: =Effort!A18 -> Position | B42: ='Coverage Analysis'!F8 -> 0 | C42: ='Coverage Analysis'!G8 -> 0 | D42: ='Coverage Analysis'!H8 -> 0 | E42: ='Coverage Analysis'!I8 -> 0 | F42: ='Coverage Analysis'!J8 -> 0 | G42: ='Coverage Analysis'!K8 -> 0 | H42: ='Coverage Analysis'!L8 -> 0 | I42: ='Coverage Analysis'!M8 -> 0
A43: =Effort!A20 -> PI | B43: =Effort!E36 -> 0 | C43: =Effort!F36 -> 0 | D43: =Effort!G36 -> 0 | E43: =Effort!H36 -> 0 | F43: =Effort!I36 -> 0 | G43: =Effort!J36 -> 0 | H43: =Effort!K36 -> 0 | I43: =Effort!L36 -> 0
A44: =Effort!A21 -> Coordinator | B44: =Effort!E37 -> 0 | C44: =Effort!F37 -> 0 | D44: =Effort!G37 -> 0 | E44: =Effort!H37 -> 0 | F44: =Effort!I37 -> 0 | G44: =Effort!J37 -> 0 | H44: =Effort!K37 -> 0 | I44: =Effort!L37 -> 0
A45: =Effort!A22 -> Coordinator Admin | B45: =Effort!E38 -> 0 | C45: =Effort!F38 -> 0 | D45: =Effort!G38 -> 0 | E45: =Effort!H38 -> 0 | F45: =Effort!I38 -> 0 | G45: =Effort!J38 -> 0 | H45: =Effort!K38 -> 0 | I45: =Effort!L38 -> 0
A46: =Effort!A23 -> Finanical Management | B46: =Effort!E39 -> 0 | C46: =Effort!F39 -> 0 | D46: =Effort!G39 -> 0 | E46: =Effort!H39 -> 0 | F46: =Effort!I39 -> 0 | G46: =Effort!J39 -> 0 | H46: =Effort!K39 -> 0 | I46: =Effort!L39 -> 0
A47: =Effort!A25 -> 0 | B47: =Effort!E41 -> 0 | C47: =Effort!F41 -> 0 | D47: =Effort!G41 -> 0 | E47: =Effort!H41 -> 0 | F47: =Effort!I41 -> 0 | G47: =Effort!J41 -> 0 | H47: =Effort!K41 -> 0 | I47: =Effort!L41 -> 0
A48: =Effort!A26 -> 0 | B48: =Effort!E42 -> 0 | C48: =Effort!F42 -> 0 | D48: =Effort!G42 -> 0 | E48: =Effort!H42 -> 0 | F48: =Effort!I42 -> 0 | G48: =Effort!J42 -> 0 | H48: =Effort!K42 -> 0 | I48: =Effort!L42 -> 0
A49: =Effort!A27 -> Sponsored Projects | B49: =Effort!E43 -> 0 | C49: =Effort!F43 -> 0 | D49: =Effort!G43 -> 0 | E49: =Effort!H43 -> 0 | F49: =Effort!I43 -> 0 | G49: =Effort!J43 -> 0 | H49: =Effort!K43 -> 0 | I49: =Effort!L43 -> 0
A50: Total Effort Cost per Visit | B50: =SUM(B43:B49) -> 0 | C50: 0 | D50: 0 | E50: 0 | F50: 0 | G50: =SUM(G43:G49) -> 0 | H50: 0 | I50: =SUM(I43:I49) -> 0
A52: Total Direct Effort and Expense Cost per Visit | B52: =B50+B40 -> 0 | C52: =C50+C40 -> 0 | D52: =D50+D40 -> 0 | E52: =E50+E40 -> 0 | F52: 0 | G52: =G50+G40 -> 0 | H52: 0 | I52: =I50+I40 -> 0
A53: IDC per Visit | B53: =B52*0.3 -> 0 | C53: 0 | D53: 0 | E53: 0 | F53: 0 | G53: 0 | H53: =H52*0.3 -> 0 | I53: 0
A54: Total Cost per Visit with IDC | B54: =SUM(B52:B53) -> 0 | C54: =SUM(C52:C53) -> 0 | D54: 0 | E54: 0 | F54: 0 | G54: =SUM(G52:G53) -> 0 | H54: 0 | I54: =SUM(I52:I53) -> 0
A56: Start cost | D56: Total | E56: Total W IDC
A57: =IF(ISBLANK('Start up and Invoiceables'!A6),"",'Start up and Invoiceables'!A6) -> Start Up Effort | D57: =IF(ISBLANK('Start up and Invoiceables'!D6),"",'Start up and Invoiceables'!D6) -> 962.5 | E57: =IF(ISBLANK('Start up and Invoiceables'!D6),"",'Start up and Invoiceables'!D6*1.3) -> 1251.25
A58: =IF(ISBLANK('Start up and Invoiceables'!A7),"",'Start up and Invoiceables'!A7) -> IRB Review Fee - Local or Permission to Rely | D58: =IF(ISBLANK('Start up and Invoiceables'!D7),"",'Start up and Invoiceables'!D7) -> 2000 | E58: =IF(ISBLANK('Start up and Invoiceables'!D7),"",'Start up and Invoiceables'!D7*1.3) -> 2600
A59: =IF(ISBLANK('Start up and Invoiceables'!A8),"",'Start up and Invoiceables'!A8) -> Coverage Analysis Fee | D59: =IF(ISBLANK('Start up and Invoiceables'!D8),"",'Start up and Invoiceables'!D8) -> 1545.384615 | E59: =IF(ISBLANK('Start up and Invoiceables'!D8),"",'Start up and Invoiceables'!D8*1.3) -> 2009
A60: =IF(ISBLANK('Start up and Invoiceables'!A9),"",'Start up and Invoiceables'!A9) -> Investigational Pharmacy Setup Fee (Delete if N/A) | D60: =IF(ISBLANK('Start up and Invoiceables'!D9),"",'Start up and Invoiceables'!D9) ->  | E60: =IF(ISBLANK('Start up and Invoiceables'!D9),"",'Start up and Invoiceables'!D9*1.3) -> 
A61: =IF(ISBLANK('Start up and Invoiceables'!A10),"",'Start up and Invoiceables'!A10) -> MHH Adminsitrative Start up Fee (Delete if N/A) | D61: =IF(ISBLANK('Start up and Invoiceables'!D10),"",'Start up and Invoiceables'!D10) ->  | E61: =IF(ISBLANK('Start up and Invoiceables'!D10),"",'Start up and Invoiceables'!D10*1.3) -> 
A62: =IF(ISBLANK('Start up and Invoiceables'!A11),"",'Start up and Invoiceables'!A11) -> Radiology Dept Setup Fee (Delete if N/A) | D62: =IF(ISBLANK('Start up and Invoiceables'!D11),"",'Start up and Invoiceables'!D11) -> 750 | E62: =IF(ISBLANK('Start up and Invoiceables'!D11),"",'Start up and Invoiceables'!D11*1.3) -> 975
A63: =IF(ISBLANK('Start up and Invoiceables'!A12),"",'Start up and Invoiceables'!A12) -> CRU Start up Fee (Delete if N/A) | D63: =IF(ISBLANK('Start up and Invoiceables'!D12),"",'Start up and Invoiceables'!D12) ->  | E63: =IF(ISBLANK('Start up and Invoiceables'!D12),"",'Start up and Invoiceables'!D12*1.3) -> 
A64: =IF(ISBLANK('Start up and Invoiceables'!A13),"",'Start up and Invoiceables'!A13) -> Lab set up Fee (Delete if N/A) | D64: =IF(ISBLANK('Start up and Invoiceables'!D13),"",'Start up and Invoiceables'!D13) ->  | E64: =IF(ISBLANK('Start up and Invoiceables'!D13),"",'Start up and Invoiceables'!D13*1.3) -> 
A65: =IF(ISBLANK('Start up and Invoiceables'!A14),"",'Start up and Invoiceables'!A14) -> Patient Population Assessment Fee | D65: =IF(ISBLANK('Start up and Invoiceables'!D14),"",'Start up and Invoiceables'!D14) -> 750 | E65: =IF(ISBLANK('Start up and Invoiceables'!D14),"",'Start up and Invoiceables'!D14*1.3) -> 975
A66: =IF(ISBLANK('Start up and Invoiceables'!A15),"",'Start up and Invoiceables'!A15) ->  | D66: =IF(ISBLANK('Start up and Invoiceables'!D15),"",'Start up and Invoiceables'!D15) ->  | E66: =IF(ISBLANK('Start up and Invoiceables'!D15),"",'Start up and Invoiceables'!D15*1.3) -> 
A67: =IF(ISBLANK('Start up and Invoiceables'!A16),"",'Start up and Invoiceables'!A16) ->  | D67: =IF(ISBLANK('Start up and Invoiceables'!D16),"",'Start up and Invoiceables'!D16) ->  | E67: =IF(ISBLANK('Start up and Invoiceables'!D16),"",'Start up and Invoiceables'!D16*1.3) -> 
A68: =IF(ISBLANK('Start up and Invoiceables'!A17),"",'Start up and Invoiceables'!A17) ->  | D68: =IF(ISBLANK('Start up and Invoiceables'!D17),"",'Start up and Invoiceables'!D17) ->  | E68: =IF(ISBLANK('Start up and Invoiceables'!D17),"",'Start up and Invoiceables'!D17*1.3) -> 
A69: Total Start up Cost | D69: =SUM(D57:D68) -> 6007.884615 | E69: =SUM(E57:E68) -> 7810.25
A71: Invoiceable Procedures | B71: Unit cost | C71: Quantity | D71: Total | E71: Total W IDC
A72: =IF(ISBLANK('Start up and Invoiceables'!A21),"",'Start up and Invoiceables'!A21) -> IRB annual Review | B72: =IF(ISBLANK('Start up and Invoiceables'!B21),"",'Start up and Invoiceables'!B21) -> 1000 | C72: =IF(ISBLANK('Start up and Invoiceables'!C21),"",'Start up and Invoiceables'!C21) -> 1 | D72: =IF(ISBLANK('Start up and Invoiceables'!D21),"",'Start up and Invoiceables'!D21) -> 1000 | E72: =IF(ISBLANK('Start up and Invoiceables'!E21),"",'Start up and Invoiceables'!E21) -> 1300
A73: =IF(ISBLANK('Start up and Invoiceables'!A22),"",'Start up and Invoiceables'!A22) ->  | B73: =IF(ISBLANK('Start up and Invoiceables'!B22),"",'Start up and Invoiceables'!B22) ->  | C73: =IF(ISBLANK('Start up and Invoiceables'!C22),"",'Start up and Invoiceables'!C22) -> 1 | D73: =IF(ISBLANK('Start up and Invoiceables'!D22),"",'Start up and Invoiceables'!D22) -> 0 | E73: =IF(ISBLANK('Start up and Invoiceables'!E22),"",'Start up and Invoiceables'!E22) -> 0
A74: =IF(ISBLANK('Start up and Invoiceables'!A23),"",'Start up and Invoiceables'!A23) ->  | B74: =IF(ISBLANK('Start up and Invoiceables'!B23),"",'Start up and Invoiceables'!B23) ->  | C74: =IF(ISBLANK('Start up and Invoiceables'!C23),"",'Start up and Invoiceables'!C23) -> 1 | D74: =IF(ISBLANK('Start up and Invoiceables'!D23),"",'Start up and Invoiceables'!D23) -> 0 | E74: =IF(ISBLANK('Start up and Invoiceables'!E23),"",'Start up and Invoiceables'!E23) -> 0
A75: =IF(ISBLANK('Start up and Invoiceables'!A24),"",'Start up and Invoiceables'!A24) ->  | B75: =IF(ISBLANK('Start up and Invoiceables'!B24),"",'Start up and Invoiceables'!B24) ->  | C75: =IF(ISBLANK('Start up and Invoiceables'!C24),"",'Start up and Invoiceables'!C24) -> 1 | D75: =IF(ISBLANK('Start up and Invoiceables'!D24),"",'Start up and Invoiceables'!D24) -> 0 | E75: =IF(ISBLANK('Start up and Invoiceables'!E24),"",'Start up and Invoiceables'!E24) -> 0
A76: =IF(ISBLANK('Start up and Invoiceables'!A25),"",'Start up and Invoiceables'!A25) ->  | B76: =IF(ISBLANK('Start up and Invoiceables'!B25),"",'Start up and Invoiceables'!B25) ->  | C76: =IF(ISBLANK('Start up and Invoiceables'!C25),"",'Start up and Invoiceables'!C25) -> 1 | D76: =IF(ISBLANK('Start up and Invoiceables'!D25),"",'Start up and Invoiceables'!D25) -> 0 | E76: =IF(ISBLANK('Start up and Invoiceables'!E25),"",'Start up and Invoiceables'!E25) -> 0
A77: =IF(ISBLANK('Start up and Invoiceables'!A26),"",'Start up and Invoiceables'!A26) ->  | B77: =IF(ISBLANK('Start up and Invoiceables'!B26),"",'Start up and Invoiceables'!B26) ->  | C77: =IF(ISBLANK('Start up and Invoiceables'!C26),"",'Start up and Invoiceables'!C26) -> 1 | D77: =IF(ISBLANK('Start up and Invoiceables'!D26),"",'Start up and Invoiceables'!D26) -> 0 | E77: =IF(ISBLANK('Start up and Invoiceables'!E26),"",'Start up and Invoiceables'!E26) -> 0
A78: =IF(ISBLANK('Start up and Invoiceables'!A27),"",'Start up and Invoiceables'!A27) ->  | B78: =IF(ISBLANK('Start up and Invoiceables'!B27),"",'Start up and Invoiceables'!B27) ->  | C78: =IF(ISBLANK('Start up and Invoiceables'!C27),"",'Start up and Invoiceables'!C27) -> 1 | D78: =IF(ISBLANK('Start up and Invoiceables'!D27),"",'Start up and Invoiceables'!D27) -> 0 | E78: =IF(ISBLANK('Start up and Invoiceables'!E27),"",'Start up and Invoiceables'!E27) -> 0
A79: =IF(ISBLANK('Start up and Invoiceables'!A28),"",'Start up and Invoiceables'!A28) ->  | B79: =IF(ISBLANK('Start up and Invoiceables'!B28),"",'Start up and Invoiceables'!B28) ->  | C79: =IF(ISBLANK('Start up and Invoiceables'!C28),"",'Start up and Invoiceables'!C28) -> 1 | D79: =IF(ISBLANK('Start up and Invoiceables'!D28),"",'Start up and Invoiceables'!D28) -> 0 | E79: =IF(ISBLANK('Start up and Invoiceables'!E28),"",'Start up and Invoiceables'!E28) -> 0
A80: =IF(ISBLANK('Start up and Invoiceables'!A29),"",'Start up and Invoiceables'!A29) ->  | B80: =IF(ISBLANK('Start up and Invoiceables'!B29),"",'Start up and Invoiceables'!B29) ->  | C80: =IF(ISBLANK('Start up and Invoiceables'!C29),"",'Start up and Invoiceables'!C29) ->  | D80: =IF(ISBLANK('Start up and Invoiceables'!D29),"",'Start up and Invoiceables'!D29) -> 0 | E80: =IF(ISBLANK('Start up and Invoiceables'!E29),"",'Start up and Invoiceables'!E29) -> 0
A81: =IF(ISBLANK('Start up and Invoiceables'!A30),"",'Start up and Invoiceables'!A30) ->  | B81: =IF(ISBLANK('Start up and Invoiceables'!B30),"",'Start up and Invoiceables'!B30) ->  | C81: =IF(ISBLANK('Start up and Invoiceables'!C30),"",'Start up and Invoiceables'!C30) ->  | D81: =IF(ISBLANK('Start up and Invoiceables'!D30),"",'Start up and Invoiceables'!D30) -> 0 | E81: =IF(ISBLANK('Start up and Invoiceables'!E30),"",'Start up and Invoiceables'!E30) -> 0
A82: =IF(ISBLANK('Start up and Invoiceables'!A31),"",'Start up and Invoiceables'!A31) ->  | B82: =IF(ISBLANK('Start up and Invoiceables'!B31),"",'Start up and Invoiceables'!B31) ->  | C82: =IF(ISBLANK('Start up and Invoiceables'!C31),"",'Start up and Invoiceables'!C31) ->  | D82: =IF(ISBLANK('Start up and Invoiceables'!D31),"",'Start up and Invoiceables'!D31) -> 0 | E82: =IF(ISBLANK('Start up and Invoiceables'!E31),"",'Start up and Invoiceables'!E31) -> 0
A83: =IF(ISBLANK('Start up and Invoiceables'!A32),"",'Start up and Invoiceables'!A32) ->  | B83: =IF(ISBLANK('Start up and Invoiceables'!B32),"",'Start up and Invoiceables'!B32) ->  | C83: =IF(ISBLANK('Start up and Invoiceables'!C32),"",'Start up and Invoiceables'!C32) ->  | D83: =IF(ISBLANK('Start up and Invoiceables'!D32),"",'Start up and Invoiceables'!D32) -> 0 | E83: =IF(ISBLANK('Start up and Invoiceables'!E32),"",'Start up and Invoiceables'!E32) -> 0
A84: =IF(ISBLANK('Start up and Invoiceables'!A33),"",'Start up and Invoiceables'!A33) ->  | B84: =IF(ISBLANK('Start up and Invoiceables'!B33),"",'Start up and Invoiceables'!B33) ->  | C84: =IF(ISBLANK('Start up and Invoiceables'!C33),"",'Start up and Invoiceables'!C33) ->  | D84: =IF(ISBLANK('Start up and Invoiceables'!D33),"",'Start up and Invoiceables'!D33) -> 0 | E84: =IF(ISBLANK('Start up and Invoiceables'!E33),"",'Start up and Invoiceables'!E33) -> 0
A85: =IF(ISBLANK('Start up and Invoiceables'!A34),"",'Start up and Invoiceables'!A34) ->  | B85: =IF(ISBLANK('Start up and Invoiceables'!B34),"",'Start up and Invoiceables'!B34) ->  | C85: =IF(ISBLANK('Start up and Invoiceables'!C34),"",'Start up and Invoiceables'!C34) ->  | D85: =IF(ISBLANK('Start up and Invoiceables'!D34),"",'Start up and Invoiceables'!D34) -> 0 | E85: =IF(ISBLANK('Start up and Invoiceables'!E34),"",'Start up and Invoiceables'!E34) -> 0
A86: =IF(ISBLANK('Start up and Invoiceables'!A35),"",'Start up and Invoiceables'!A35) ->  | B86: =IF(ISBLANK('Start up and Invoiceables'!B35),"",'Start up and Invoiceables'!B35) ->  | C86: =IF(ISBLANK('Start up and Invoiceables'!C35),"",'Start up and Invoiceables'!C35) ->  | D86: =IF(ISBLANK('Start up and Invoiceables'!D35),"",'Start up and Invoiceables'!D35) -> 0 | E86: =IF(ISBLANK('Start up and Invoiceables'!E35),"",'Start up and Invoiceables'!E35) -> 0
A87: =IF(ISBLANK('Start up and Invoiceables'!A36),"",'Start up and Invoiceables'!A36) ->  | B87: =IF(ISBLANK('Start up and Invoiceables'!B36),"",'Start up and Invoiceables'!B36) ->  | C87: =IF(ISBLANK('Start up and Invoiceables'!C36),"",'Start up and Invoiceables'!C36) ->  | D87: =IF(ISBLANK('Start up and Invoiceables'!D36),"",'Start up and Invoiceables'!D36) -> 0 | E87: =IF(ISBLANK('Start up and Invoiceables'!E36),"",'Start up and Invoiceables'!E36) -> 0
A88: =IF(ISBLANK('Start up and Invoiceables'!A37),"",'Start up and Invoiceables'!A37) ->  | B88: =IF(ISBLANK('Start up and Invoiceables'!B37),"",'Start up and Invoiceables'!B37) ->  | C88: =IF(ISBLANK('Start up and Invoiceables'!C37),"",'Start up and Invoiceables'!C37) ->  | D88: =IF(ISBLANK('Start up and Invoiceables'!D37),"",'Start up and Invoiceables'!D37) -> 0 | E88: =IF(ISBLANK('Start up and Invoiceables'!E37),"",'Start up and Invoiceables'!E37) -> 0
A89: =IF(ISBLANK('Start up and Invoiceables'!A38),"",'Start up and Invoiceables'!A38) ->  | B89: =IF(ISBLANK('Start up and Invoiceables'!B38),"",'Start up and Invoiceables'!B38) ->  | C89: =IF(ISBLANK('Start up and Invoiceables'!C38),"",'Start up and Invoiceables'!C38) ->  | D89: =IF(ISBLANK('Start up and Invoiceables'!D38),"",'Start up and Invoiceables'!D38) -> 0 | E89: =IF(ISBLANK('Start up and Invoiceables'!E38),"",'Start up and Invoiceables'!E38) -> 0
A90: =IF(ISBLANK('Start up and Invoiceables'!A39),"",'Start up and Invoiceables'!A39) ->  | B90: =IF(ISBLANK('Start up and Invoiceables'!B39),"",'Start up and Invoiceables'!B39) ->  | C90: =IF(ISBLANK('Start up and Invoiceables'!C39),"",'Start up and Invoiceables'!C39) ->  | D90: =IF(ISBLANK('Start up and Invoiceables'!D39),"",'Start up and Invoiceables'!D39) -> 0 | E90: =IF(ISBLANK('Start up and Invoiceables'!E39),"",'Start up and Invoiceables'!E39) -> 0
A91: =IF(ISBLANK('Start up and Invoiceables'!A40),"",'Start up and Invoiceables'!A40) ->  | B91: =IF(ISBLANK('Start up and Invoiceables'!B40),"",'Start up and Invoiceables'!B40) ->  | C91: =IF(ISBLANK('Start up and Invoiceables'!C40),"",'Start up and Invoiceables'!C40) ->  | D91: =IF(ISBLANK('Start up and Invoiceables'!D40),"",'Start up and Invoiceables'!D40) -> 0 | E91: =IF(ISBLANK('Start up and Invoiceables'!E40),"",'Start up and Invoiceables'!E40) -> 0
A92: =IF(ISBLANK('Start up and Invoiceables'!A41),"",'Start up and Invoiceables'!A41) ->  | B92: =IF(ISBLANK('Start up and Invoiceables'!B41),"",'Start up and Invoiceables'!B41) ->  | C92: =IF(ISBLANK('Start up and Invoiceables'!C41),"",'Start up and Invoiceables'!C41) ->  | D92: =IF(ISBLANK('Start up and Invoiceables'!D41),"",'Start up and Invoiceables'!D41) -> 0 | E92: =IF(ISBLANK('Start up and Invoiceables'!E41),"",'Start up and Invoiceables'!E41) -> 0
A93: =IF(ISBLANK('Start up and Invoiceables'!A42),"",'Start up and Invoiceables'!A42) ->  | B93: =IF(ISBLANK('Start up and Invoiceables'!B42),"",'Start up and Invoiceables'!B42) ->  | C93: =IF(ISBLANK('Start up and Invoiceables'!C42),"",'Start up and Invoiceables'!C42) ->  | D93: =IF(ISBLANK('Start up and Invoiceables'!D42),"",'Start up and Invoiceables'!D42) -> 0 | E93: =IF(ISBLANK('Start up and Invoiceables'!E42),"",'Start up and Invoiceables'!E42) -> 0
A94: =IF(ISBLANK('Start up and Invoiceables'!A43),"",'Start up and Invoiceables'!A43) ->  | B94: =IF(ISBLANK('Start up and Invoiceables'!B43),"",'Start up and Invoiceables'!B43) ->  | C94: =IF(ISBLANK('Start up and Invoiceables'!C43),"",'Start up and Invoiceables'!C43) ->  | D94: =IF(ISBLANK('Start up and Invoiceables'!D43),"",'Start up and Invoiceables'!D43) -> 0 | E94: =IF(ISBLANK('Start up and Invoiceables'!E43),"",'Start up and Invoiceables'!E43) -> 0
A95: Total Invoicable Costs | D95: =SUM(D72:D94) -> 1000 | E95: =SUM(E72:E94) -> 1300
